Workbook

Sheet 1. Info
AB1: Algoma Power Inc.
AB2: Atikokan Hydro Inc.
AB3: Attawapiskat Power Corporation
AB4: Bluewater Power Distribution Corporation
AB5: Brant County Power Inc.
AB6: Brantford Power Inc.
AB7: Burlington Hydro Inc.
AB8: Cambridge and North Dumfries Hydro Inc.
AB9: Canadian Niagara Power Inc.
AB10: Centre Wellington Hydro Ltd.
AB11: Chapleau Public Utilities Corporation
AB12: COLLUS PowerStream Corp.
A13: Drop-down lists are shaded blue; Input cells are shaded green. | AB13: Cooperative Hydro Embrun Inc.
AB14: E.L.K. Energy Inc.
C15: Utility Name | D15: Horizon Utilities Corporation | AB15: Enersource Hydro Mississauga Inc.
AB16: Entegrus Powerlines Inc.
C17: Service Territory | D17: Hamilton & St. Catharines | AB17: EnWin Utilities Ltd.
AB18: Erie Thames Powerlines Corporation
C19: Assigned EB Number | D19: EB-2015-0075 | AB19: Espanola Regional Hydro Distribution Corporation
AB20: Essex Powerlines Corporation
C21: Name and Title | D21: Indy Butany-DeSouza | AB21: Festival Hydro Inc.
AB22: Fort Albany Power Corporation
C23: Phone Number | D23: 905-317-4765 | AB23: Fort Frances Power Corporation
AB24: Greater Sudbury Hydro Inc.
C25: Email Address | D25: indy.butany@horizonutilities.com | AB25: Grimsby Power Inc.
AB26: Guelph Hydro Electric Systems Inc.
C27: Date | D27: 2015-07-31 | AB27: Haldimand County Hydro Inc.
AB28: Halton Hills Hydro Inc.
C29: Last COS Re-based Year | D29: 2015 | AB29: Hearst Power Distribution Company Limited
AB30: Horizon Utilities Corporation
AB31: Hydro 2000 Inc.
AB32: Hydro Hawkesbury Inc.
AB33: Hydro One Brampton Networks Inc.
AB34: Hydro One Networks Inc.
AB35: Hydro One Remote Communities Inc.
AB36: Hydro Ottawa Limited
AB37: Innpower Corporation
AB38: Kashechewan Power Corporation
AB39: Kenora Hydro Electric Corporation Ltd.
AB40: Kingston Hydro Corporation
AB41: Kitchener-Wilmot Hydro Inc.
AB42: Lakefront Utilities Inc.
AB43: Lakeland Power Distribution Ltd.
AB44: London Hydro Inc.
AB45: Midland Power Utility Corporation
AB46: Milton Hydro Distribution Inc.
AB47: Newmarket-Tay Power Distribution Ltd.
AB48: Niagara Peninsula Energy Inc.
AB49: Niagara-on-the-Lake Hydro Inc.
AB50: Norfolk Power Distribution Inc.
AB51: North Bay Hydro Distribution Limited
AB52: Northern Ontario Wires Inc.
AB53: Oakville Hydro Electricity Distribution Inc.
AB54: Orangeville Hydro Limited
AB55: Orillia Power Distribution Corporation
AB56: Oshawa PUC Networks Inc.
AB57: Ottawa River Power Corporation
AB58: Peterborough Distribution Incorporated
AB59: PowerStream Inc.
AB60: PUC Distribution Inc.
AB61: Renfrew Hydro Inc.
AB62: Rideau St. Lawrence Distribution Inc.
AB63: Sioux Lookout Hydro Inc.
AB64: St. Thomas Energy Inc.
AB65: Thunder Bay Hydro Electricity Distribution Inc.
AB66: Tillsonburg Hydro Inc.
AB67: Toronto Hydro-Electric System Limited
AB68: Veridian Connections Inc.
AB69: Wasaga Distribution Inc.
AB70: Waterloo North Hydro Inc.
AB71: Welland Hydro-Electric System Corp.
AB72: Wellington North Power Inc.
AB73: West Coast Huron Energy Inc.
AB74: Westario Power Inc.
AB75: Whitby Hydro Electric Corporation
AB76: Woodstock Hydro Services Inc.

Sheet 2. Table of Contents
D20: 1. Info | I20: 6. Historical Wholesale
D22: 2. Table of Contents | I22: 7. Current Wholesale
D24: 3. Rate Classes | I24: 8. Forecast Wholesale
D26: 4. RRR Data | I26: 9. RTSR Rates to Forecast
D28: 5. UTRs and Sub-Transmission

Sheet 3. Rate Classes
C13: 1. Select the appropriate rate classes that appear on your most recent Board-Approved Tariff of Rates and Charges. 2. Enter the RTS Network and Connection Rate as it appears on the Tariff of Rates and Charges
C15: Rate Class | E15: Unit | G15: RTSR-Network | I15: RTSR-Connection
C17: Residential | E17: kWh | G17: 0.007991143645 | I17: 0.00587670412 | L17: =IF(OR(ISBLANK(C17), ISERROR(FIND("Choose", C17))=FALSE), 0, 1) -> 1 | M17: ="C" & ROW(C17) -> C17 | N17: =IF(OR(C17="General Service Intermediate Rate Class 1,000 To 4,999 kW (formerly General Service > 50 kW Customers)", C17="General Service Intermediate Rate Class 1,000 To 4,999 kW (formerly Large Use Customers)"), "x", "") ->  | W17: Choose Rate Class
C18: General Service Less Than 50 kW | E18: kWh | G18: 0.006992250689 | I18: 0.005311636416 | L18: 1 | M18: C18 | N18: =IF(OR(C18="General Service Intermediate Rate Class 1,000 To 4,999 kW (formerly General Service > 50 kW Customers)", C18="General Service Intermediate Rate Class 1,000 To 4,999 kW (formerly Large Use Customers)"), "x", "") ->  | W18: Residential
C19: General Service 50 to 4,999 kW | E19: kW | G19: 2.78258281 | I19: 2.117195673 | L19: 1 | M19: C19 | W19: Residential Regular
C20: Large Use - Regular | E20: kW | G20: 3.178699361 | I20: 2.432955506 | L20: 1 | M20: C20 | W20: Residential Urban
C21: Large Use | E21: kW | G21: =+G20 -> 3.178699361 | I21: =+I20 -> 2.432955506 | L21: 1 | M21: C21 | W21: Residential Urban Year-Round
C22: Unmetered Scattered Load | E22: kWh | G22: 0.007103238795 | I22: 0.005424649957 | L22: 1 | M22: C22 | W22: Residential Suburban
C23: Standby Power | E23: kW | L23: 1 | M23: C23 | W23: Residential Suburban Seasonal
C24: Sentinel Lighting | E24: kW | G24: 2.312215216 | I24: 1.703679127 | L24: 1 | M24: C24 | W24: Residential Suburban Year Round
C25: Street Lighting | E25: kW | G25: 2.190572252 | I25: 1.661073022 | L25: 1 | M25: C25 | W25: Residential - Time of Use
C26: Choose Rate Class | L26: 0 | M26: C26 | W26: Residential - Hensall
C27: Choose Rate Class | L27: 0 | M27: C27 | W27: Residential – High Density [R1]
C28: Choose Rate Class | L28: 0 | M28: C28 | W28: Residential – Normal Density [R2]
C29: Choose Rate Class | L29: 0 | M29: C29 | W29: Seasonal Residential – High Density [R3]
C30: Choose Rate Class | L30: 0 | M30: C30 | W30: Seasonal Residential – Normal Density [R4]
C31: Choose Rate Class | L31: 0 | M31: C31 | W31: Residential – Urban [UR]
C32: Choose Rate Class | L32: 0 | M32: C32 | W32: General Service Less Than 50 kW
C33: Choose Rate Class | L33: 0 | M33: C33 | W33: General Service Less Than 50 kW – Single Phase energy-billed [G1]
C34: Choose Rate Class | L34: 0 | M34: C34 | W34: General Service Less Than 50 kW – Three Phase energy-billed [G3]
C35: Choose Rate Class | L35: 0 | M35: C35 | W35: General Service Less Than 50 kW – Transmission Class energy-billed [T]
C36: Choose Rate Class | L36: 0 | M36: C36 | W36: General Service Less Than 50 kW – Urban energy-billed [UG]
C37: Choose Rate Class | L37: 0 | M37: C37 | W37: Westport Sewage Treatment Plant
C38: Choose Rate Class | L38: 0 | M38: C38 | W38: Small Commercial and USL - per meter
N39: =COUNTIF(N17:N38, "x") -> 0 | W39: Small Commercial and USL - per connection
W40: Farms – Single Phase energy-billed [F1]
W41: General Service 50 to 499 kW
W42: General Service 50 to 699 kW
W43: General Service 50 to 999 kW
W44: General Service 50 to 999 kW - Interval Metered
W45: General Service 50 to 1,000 kW
W46: General Service 50 to 1,000 kW - Interval Meters
W47: General Service 50 to 1,000 kW - Non Interval Meters
W48: General Service 50 to 1,499 kW
W49: General Service 50 to 1,499 kW - Interval Metered
W50: General Service 50 to 2,499 kW
W51: General Service 50 to 2,999 kW
W52: General Service 50 to 2,999 kW - Time of Use
W53: General Service 50 to 4,999 kW
W54: General Service 50 to 4,999 kW – Interval Metered
W55: General Service 50 to 4,999 kW - Time of Use
W56: General Service 50 to 4,999 kW (CoGeneration)
W57: General Service 50 to 4,999 kW (formerly Time of Use)
W58: General Service 500 to 4,999 kW
W59: General Service 700 to 4,999 kW
W60: General Service 1,000 to 2,999 kW
W61: General Service 1,000 to 4,999 kW
W62: General Service 1,000 to 4,999 kW - Interval Meters
W63: General Service 1,000 To 4,999 kW (co-generation)
W64: General Service Greater Than 1,000 kW
W65: General Service Intermediate Rate Class 1,000 To 4,999 kW (formerly Large Use Customers)
W66: General Service Intermediate Rate Class 1,000 To 4,999 kW (formerly General Service > 50 kW Customers)
W67: General Service 1,500 to 4,999 kW
W68: General Service Equal To Or Greater Than 1,500 kW
W69: General Service Equal To Or Greater Than 1,500 kW - Interval Metered
W70: General Service Intermediate 1,000 To 4,999 kW
W71: General Service 2,500 to 4,999 kW
W72: General Service 3,000 to 4,999 kW
W73: General Service 3,000 to 4,999 kW - Interval Metered
W74: General Service 3,000 to 4,999 kW - Intermediate Use
W75: General Service 3,000 to 4,999 kW - Time of Use
W76: Intermediate With Self Generation
W77: General Service - Commercial
W78: General Service - Institutional
W79: Farms – Three Phase energy-billed [F3]
W80: Large Use
W81: Large Use - Regular
W82: Large Use > 5000 kW
W83: Large Use - 3TS
W84: Large Use - Ford Annex
W85: Unmetered Scattered Load
W86: Sentinel Lighting
W87: Street Lighting
W88: Embedded Distributor
W89: Low Voltage Wheeling Charge Rate
W90: Stand-By
W91: Standby Power
W92: Standby Power – INTERIM APPROVAL
W93: Standby Power - APPROVED ON AN INTERIM BASIS
W94: Standby - General Service 50 - 1,000 kW
W95: Standby Power General Service 50 to 1,499 kW
W96: Standby - General Service 1,000 - 5,000 kW
W97: Standby Power General Service 1,500 to 4,999 kW
W98: Standby - Large Use
W99: Standby Power General Service Large Use
W100: Standby Distribution Service

Sheet 4. RRR Data
B15: Rate Class | C15: Rate Description | D15: Unit | E15: Rate | F15: Non-Loss Adjusted Metered kWh | G15: Non-Loss Adjusted Metered kW | H15: Applicable Loss Factor eg: (1.0325) | I15: Loss Adjusted Billed kWh
B17: Residential | C17: RTSR - Network | D17: kWh | E17: 0.007991143645 | F17: 1605906184 | H17: 1.0407 | I17: =F17*H17 -> 1671266565
B18: Residential | C18: RTSR - Connection | D18: kWh | E18: 0.00587670412 | F18: 1605906184 | H18: 1.0407 | I18: =F18*H18 -> 1671266565
B19: General Service Less Than 50 kW | C19: RTSR - Network | D19: kWh | E19: 0.006992250689 | F19: 600073699.2 | H19: 1.0407 | I19: =F19*H19 -> 624496698.8
B20: General Service Less Than 50 kW | C20: RTSR - Connection | D20: kWh | E20: 0.005311636416 | F20: 600073699.2 | H20: 1.0407 | I20: =F20*H20 -> 624496698.8
B21: General Service 50 to 4,999 kW | C21: RTSR - Network | D21: kW | E21: 2.78258281 | F21: 1862697982 | G21: 4971638.836
B22: General Service 50 to 4,999 kW | C22: RTSR - Connection | D22: kW | E22: 2.117195673 | F22: 1862697982 | G22: 4971638.836
B23: Large Use - Regular | C23: RTSR - Network | D23: kW | E23: 3.178699361 | F23: 216965539.2 | G23: 516539.5221
B24: Large Use - Regular | C24: RTSR - Connection | D24: kW | E24: 2.432955506 | F24: 216965539.2 | G24: 516539.5221
B25: Large Use | C25: RTSR - Network | D25: kW | E25: 3.178699361 | F25: 379292173.4 | G25: 1963579.23
B26: Large Use | C26: RTSR - Connection | D26: kW | E26: 2.432955506 | F26: 379292173.4 | G26: 1963579.23
B27: Unmetered Scattered Load | C27: RTSR - Network | D27: kWh | E27: 0.007103238795 | F27: 11637434.47 | H27: 1.0407 | I27: =F27*H27 -> 12111078.05
B28: Unmetered Scattered Load | C28: RTSR - Connection | D28: kWh | E28: 0.005424649957 | F28: 11637434.47 | H28: 1.0407 | I28: =F28*H28 -> 12111078.05
B29: Standby Power | C29: RTSR - Network | D29: kW
B30: Standby Power | C30: RTSR - Connection | D30: kW
B31: Sentinel Lighting | C31: RTSR - Network | D31: kW | E31: 2.312215216 | F31: 454623.8178 | G31: 1253.43814
B32: Sentinel Lighting | C32: RTSR - Connection | D32: kW | E32: 1.703679127 | F32: 454623.8178 | G32: 1253.43814
B33: Street Lighting | C33: RTSR - Network | D33: kW | E33: 2.190572252 | F33: 39461781.14 | G33: 110284.83
B34: Street Lighting | C34: RTSR - Connection | D34: kW | E34: 1.661073022 | F34: 39461781.14 | G34: 110284.83

Sheet 5. UTRs and Sub-Transmission
B18: Uniform Transmission Rates | C18: Unit | E18: Effective January 1, 2014 | G18: Effective January 1, 2015 | I18: Effective January 1, 2016
B20: Rate Description | E20: Rate | G20: Rate | I20: Rate
B22: Network Service Rate | C22: kW | E22: 3.82 | G22: 3.78 | I22: 3.78
B24: Line Connection Service Rate | C24: kW | E24: 0.82 | G24: 0.86 | I24: 0.86
B26: Transformation Connection Service Rate | C26: kW | E26: 1.98 | G26: 2 | I26: 2
B29: Hydro One Sub-Transmission Rates | C29: Unit | E29: Effective January 1, 2014 to April 30, 2015 | G29: Effective May 1, 2015 | I29: Effective January 1, 2016
B33: Rate Description | E33: Rate | G33: Rate | I33: Rate
B35: Network Service Rate | C35: kW | E35: 3.23 | G35: 3.4121 | I35: 3.4121
B37: Line Connection Service Rate | C37: kW | E37: 0.65 | G37: 0.7879 | I37: 0.7879
B39: Transformation Connection Service Rate | C39: kW | E39: 1.62 | G39: 1.8018 | I39: 1.8018
B41: Both Line and Transformation Connection Service Rate | C41: kW | E41: =SUM(E39,E37) -> 2.27 | G41: =SUM(G39,G37) -> 2.5897 | I41: =SUM(I39,I37) -> 2.5897
B44: If needed, add extra host here. (I) | C44: Unit | E44: Effective January 1, 2014 | G44: Effective January 1, 2015 | I44: Effective January 1, 2016
B48: Rate Description | E48: Rate | G48: Rate | I48: Rate
B50: Network Service Rate | C50: kW
B52: Line Connection Service Rate | C52: kW
B54: Transformation Connection Service Rate | C54: kW
B56: Both Line and Transformation Connection Service Rate | C56: kW | E56: =SUM(E52,E54) -> 0 | G56: =SUM(G52,G54) -> 0 | I56: =I54+I52 -> 0
B59: If needed, add extra host here. (II) | C59: Unit | E59: Effective January 1, 2014 | G59: Effective January 1, 2015 | I59: Effective January 1, 2016
B63: Rate Description | E63: Rate | G63: Rate | I63: Rate
B65: Network Service Rate | C65: kW
B67: Line Connection Service Rate | C67: kW
B69: Transformation Connection Service Rate | C69: kW
B71: Both Line and Transformation Connection Service Rate | C71: kW | E71: =SUM(E67,E69) -> 0 | G71: =SUM(G67,G69) -> 0 | I71: =I69+I67 -> 0
B75: Hydro One Sub-Transmission Rate Rider 9A | C75: Unit | E75: Effective January 1, 2014 | G75: Effective January 1, 2015 | I75: Effective January 1, 2016
B77: Rate Description | E77: Rate | G77: Rate | I77: Rate
B79: RSVA Transmission network – 4714 – which affects 1584 | C79: kW | E79: 0.1465 | G79: 0 | I79: 0
B81: RSVA Transmission connection – 4716 – which affects 1586 | C81: kW | E81: 0.0667 | G81: 0 | I81: 0
B83: RSVA LV – 4750 – which affects 1550 | C83: kW | E83: 0.0475 | G83: 0 | I83: 0.4723
B85: RARA 1 – 2252 – which affects 1590 | C85: kW | E85: 0.0419 | G85: 0 | I85: 0
B87: RARA 1 – 2252 – which affects 1590 (2008) | C87: kW | E87: -0.027 | G87: 0 | I87: 0
B89: RARA 1 – 2252 – which affects 1590 (2009) | C89: kW | E89: -0.0006 | G89: 0 | I89: 0
B91: Hydro One Sub-Transmission Rate Rider 9A | C91: kW | E91: 0.275 | G91: 0 | I91: =SUM(I79:I89) -> 0.4723
E94: Historical 2014 | G94: Current 2015 | I94: Forecast 2016
B95: Low Voltage Switchgear Credit (if applicable, enter as a negative value) | C95: $

Sheet 6. Historical Wholesale
B21: IESO | D21: Network | H21: Line Connection | L21: Transformation Connection | P21: Total Line
B22: Month | D22: Units Billed | E22: Rate | F22: Amount | H22: Units Billed | I22: Rate | J22: Amount | L22: Units Billed | M22: Rate | N22: Amount | P22: Amount
B24: January | D24: 818629 | E24: =IF(D24<>0,F24/D24,0) -> 3.82 | F24: 3127162.78 | H24: 790046 | I24: =IF(H24<>0,J24/H24,0) -> 0.82 | J24: 647837.72 | L24: 850831 | M24: =IF(L24<>0,N24/L24,0) -> 1.98 | N24: 1684645.38 | P24: =J24+N24 -> 2332483.1
B25: February | D25: 767039 | E25: 3.82 | F25: 2930088.98 | H25: 741278 | I25: 0.82 | J25: 607847.96 | L25: 800672 | M25: 1.98 | N25: 1585330.56 | P25: 2193178.52
B26: March | D26: 771790 | E26: 3.82 | F26: 2948237.8 | H26: 738164 | I26: 0.82 | J26: 605294.48 | L26: 802719 | M26: 1.98 | N26: 1589383.62 | P26: 2194678.1
B27: April | D27: 661662 | E27: 3.82 | F27: 2527548.84 | H27: 653443 | I27: 0.82 | J27: 535823.26 | L27: 716968 | M27: 1.98 | N27: 1419596.64 | P27: 1955419.9
B28: May | D28: 731190 | E28: 3.82 | F28: 2793145.8 | H28: 714048 | I28: 0.82 | J28: 585519.36 | L28: 777679 | M28: 1.98 | N28: 1539804.42 | P28: 2125323.78
B29: June | D29: 898060 | E29: 3.82 | F29: 3430589.2 | H29: 876627 | I29: 0.82 | J29: 718834.14 | L29: 940033 | M29: 1.98 | N29: 1861265.34 | P29: 2580099.48
B30: July | D30: 891280 | E30: 3.82 | F30: 3404689.6 | H30: 859904 | I30: 0.82 | J30: 705121.28 | L30: 926167 | M30: 1.98 | N30: 1833810.66 | P30: 2538931.94
B31: August | D31: 898528 | E31: 3.82 | F31: 3432376.96 | H31: 869383 | I31: 0.82 | J31: 712894.06 | L31: 935999 | M31: 1.98 | N31: 1853278.02 | P31: 2566172.08
B32: September | D32: 906573 | E32: 3.82 | F32: 3463108.86 | H32: 867460 | I32: 0.82 | J32: 711317.2 | L32: 934185 | M32: 1.98 | N32: 1849686.3 | P32: 2561003.5
B33: October | D33: 637018 | E33: 3.82 | F33: 2433408.76 | H33: 649391 | I33: 0.82 | J33: 532500.62 | L33: 701736 | M33: 1.98 | N33: 1389437.28 | P33: 1921937.9
B34: November | D34: 744410 | E34: 3.82 | F34: 2843646.2 | H34: 712163 | I34: 0.82 | J34: 583973.66 | L34: 769246 | M34: 1.98 | N34: 1523107.08 | P34: 2107080.74
B35: December | D35: 744881 | E35: 3.82 | F35: 2845445.42 | H35: 724013 | I35: 0.82 | J35: 593690.66 | L35: 783995 | M35: 1.98 | N35: 1552310.1 | P35: 2146000.76
B37: Total | D37: =SUM(D24:D35) -> 9471060 | E37: =IF(D37<>0,F37/D37,0) -> 3.82 | F37: =SUM(F24:F35) -> 36179449.2 | H37: =SUM(H24:H35) -> 9195920 | I37: =IF(H37<>0,J37/H37,0) -> 0.82 | J37: =SUM(J24:J35) -> 7540654.4 | L37: =SUM(L24:L35) -> 9940230 | M37: =IF(L37<>0,N37/L37,0) -> 1.98 | N37: =SUM(N24:N35) -> 19681655.4 | P37: =SUM(P24:P35) -> 27222309.8
B39: Hydro One | D39: Network | H39: Line Connection | L39: Transformation Connection | P39: Total Line
B41: Month | D41: Units Billed | E41: Rate | F41: Amount | H41: Units Billed | I41: Rate | J41: Amount | L41: Units Billed | M41: Rate | N41: Amount | P41: Amount
B43: January | D43: 84841.52012 | E43: =IF(D43<>0,F43/D43,0) -> 3.23 | F43: 274038.11 | H43: 85702.51982 | I43: =IF(H43<>0,J43/H43,0) -> 0.65 | J43: 55706.63789 | L43: 85702.51982 | M43: =IF(L43<>0,N43/L43,0) -> 1.62 | N43: 138838.0821 | P43: =J43+N43 -> 194544.72
B44: February | D44: 64776.82663 | E44: 3.23 | F44: 209229.15 | H44: 66041.32159 | I44: 0.65 | J44: 42926.85903 | L44: 66041.32159 | M44: 1.62 | N44: 106986.941 | P44: 149913.8
B45: March | D45: 59833.81734 | E45: 3.23 | F45: 193263.23 | H45: 62025.76211 | I45: 0.65 | J45: 40316.74537 | L45: 62025.76211 | M45: 1.62 | N45: 100481.7346 | P45: 140798.48
B46: April | D46: 62710.78947 | E46: 3.23 | F46: 202555.85 | H46: 64602.53744 | I46: 0.65 | J46: 41991.64934 | L46: 64602.53744 | M46: 1.62 | N46: 104656.1107 | P46: 146647.76
B47: May | D47: 75075.43034 | E47: 3.23 | F47: 242493.64 | H47: 76443.9163 | I47: 0.65 | J47: 49688.54559 | L47: 76443.9163 | M47: 1.62 | N47: 123839.1444 | P47: 173527.69
B48: June | D48: 83159.6904 | E48: 3.23 | F48: 268605.8 | H48: 83694.28634 | I48: 0.65 | J48: 54401.28612 | L48: 83694.28634 | M48: 1.62 | N48: 135584.7439 | P48: 189986.03
B49: July | D49: 81433.65015 | E49: 3.23 | F49: 263030.69 | H49: 82032.74009 | I49: 0.65 | J49: 53321.28106 | L49: 82032.74009 | M49: 1.62 | N49: 132893.0389 | P49: 186214.32
B50: August | D50: 81347.25077 | E50: 3.23 | F50: 262751.62 | H50: 81691.45374 | I50: 0.65 | J50: 53099.44493 | L50: 81691.45374 | M50: 1.62 | N50: 132340.1551 | P50: 185439.6
B51: September | D51: 62734.36223 | E51: 3.23 | F51: 202631.99 | H51: 65040.59912 | I51: 0.65 | J51: 42276.38943 | L51: 65040.59912 | M51: 1.62 | N51: 105365.7706 | P51: 147642.16
B52: October | D52: 57289.91022 | E52: 3.23 | F52: 185046.41 | H52: 58289.96035 | I52: 0.65 | J52: 37888.47423 | L52: 58289.96035 | M52: 1.62 | N52: 94429.73577 | P52: 132318.21
B53: November | D53: 64284.7678 | E53: 3.23 | F53: 207639.8 | H53: 64766.48018 | I53: 0.65 | J53: 42098.21211 | L53: 64766.48018 | M53: 1.62 | N53: 104921.6979 | P53: 147019.91
B54: December | D54: 66965.63158 | E54: 3.23 | F54: 216298.99 | H54: 67319.19824 | I54: 0.65 | J54: 43757.47885 | L54: 67319.19824 | M54: 1.62 | N54: 109057.1011 | P54: 152814.58
B56: Total | D56: =SUM(D43:D54) -> 844453.6471 | E56: =IF(D56<>0,F56/D56,0) -> 3.23 | F56: =SUM(F43:F54) -> 2727585.28 | H56: =SUM(H43:H54) -> 857650.7753 | I56: =IF(H56<>0,J56/H56,0) -> 0.65 | J56: =SUM(J43:J54) -> 557473.004 | L56: =SUM(L43:L54) -> 857650.7753 | M56: =IF(L56<>0,N56/L56,0) -> 1.62 | N56: =SUM(N43:N54) -> 1389394.256 | P56: =SUM(P43:P54) -> 1946867.26
B58: Add Extra Host Here (I) | D58: Network | H58: Line Connection | L58: Transformation Connection | P58: Total Line
B59: (if needed)
B60: Month | D60: Units Billed | E60: Rate | F60: Amount | H60: Units Billed | I60: Rate | J60: Amount | L60: Units Billed | M60: Rate | N60: Amount | P60: Amount
B62: January | E62: =IF(D62<>0,F62/D62,0) -> 0 | I62: =IF(H62<>0,J62/H62,0) -> 0 | M62: =IF(L62<>0,N62/L62,0) -> 0 | P62: =J62+N62 -> 0
B63: February | E63: 0 | I63: 0 | M63: 0 | P63: 0
B64: March | E64: 0 | I64: 0 | M64: 0 | P64: 0
B65: April | E65: 0 | I65: 0 | M65: 0 | P65: 0
B66: May | E66: 0 | I66: 0 | M66: 0 | P66: 0
B67: June | E67: 0 | I67: 0 | M67: 0 | P67: 0
B68: July | E68: 0 | I68: 0 | M68: 0 | P68: 0
B69: August | E69: 0 | I69: 0 | M69: 0 | P69: 0
B70: September | E70: 0 | I70: 0 | M70: 0 | P70: 0
B71: October | E71: 0 | I71: 0 | M71: 0 | P71: 0
B72: November | E72: 0 | I72: 0 | M72: 0 | P72: 0
B73: December | E73: 0 | I73: 0 | M73: 0 | P73: 0
B75: Total | D75: =SUM(D62:D73) -> 0 | E75: =IF(D75<>0,F75/D75,0) -> 0 | F75: =SUM(F62:F73) -> 0 | H75: =SUM(H62:H73) -> 0 | I75: =IF(H75<>0,J75/H75,0) -> 0 | J75: =SUM(J62:J73) -> 0 | L75: =SUM(L62:L73) -> 0 | M75: =IF(L75<>0,N75/L75,0) -> 0 | N75: =SUM(N62:N73) -> 0 | P75: =SUM(P62:P73) -> 0
B77: Add Extra Host Here (II) | D77: Network | H77: Line Connection | L77: Transformation Connection | P77: Total Line
B78: (if needed)
B79: Month | D79: Units Billed | E79: Rate | F79: Amount | H79: Units Billed | I79: Rate | J79: Amount | L79: Units Billed | M79: Rate | N79: Amount | P79: Amount
B81: January | E81: =IF(D81<>0,F81/D81,0) -> 0 | I81: =IF(H81<>0,J81/H81,0) -> 0 | M81: =IF(L81<>0,N81/L81,0) -> 0 | P81: =J81+N81 -> 0
B82: February | E82: 0 | I82: 0 | M82: 0 | P82: 0
B83: March | E83: 0 | I83: 0 | M83: 0 | P83: 0
B84: April | E84: 0 | I84: 0 | M84: 0 | P84: 0
B85: May | E85: 0 | I85: 0 | M85: 0 | P85: 0
B86: June | E86: 0 | I86: 0 | M86: 0 | P86: 0
B87: July | E87: 0 | I87: 0 | M87: 0 | P87: 0
B88: August | E88: 0 | I88: 0 | M88: 0 | P88: 0
B89: September | E89: 0 | I89: 0 | M89: 0 | P89: 0
B90: October | E90: 0 | I90: 0 | M90: 0 | P90: 0
B91: November | E91: 0 | I91: 0 | M91: 0 | P91: 0
B92: December | E92: 0 | I92: 0 | M92: 0 | P92: 0
B94: Total | D94: =SUM(D81:D92) -> 0 | E94: =IF(D94<>0,F94/D94,0) -> 0 | F94: =SUM(F81:F92) -> 0 | H94: =SUM(H81:H92) -> 0 | I94: =IF(H94<>0,J94/H94,0) -> 0 | J94: =SUM(J81:J92) -> 0 | L94: =SUM(L81:L92) -> 0 | M94: =IF(L94<>0,N94/L94,0) -> 0 | N94: =SUM(N81:N92) -> 0 | P94: =SUM(P81:P92) -> 0
B96: Total | D96: Network | H96: Line Connection | L96: Transformation Connection | P96: Total Line
B98: Month | D98: Units Billed | E98: Rate | F98: Amount | H98: Units Billed | I98: Rate | J98: Amount | L98: Units Billed | M98: Rate | N98: Amount | P98: Amount
B100: January | D100: =D24+D43+D62+D81 -> 903470.5201 | E100: =IF(D100<>0,F100/D100,0) -> 3.764595318 | F100: =F24+F43+F62+F81 -> 3401200.89 | H100: =H24+H43+H62+H81 -> 875748.5198 | I100: =IF(H100<>0,J100/H100,0) -> 0.8033634565 | J100: =J24+J43+J62+J81 -> 703544.3579 | L100: =L24+L43+L62+L81 -> 936533.5198 | M100: =IF(L100<>0,N100/L100,0) -> 1.94705627 | N100: =N24+N43+N62+N81 -> 1823483.462 | P100: =J100+N100 -> 2527027.82
B101: February | D101: =D25+D44+D63+D82 -> 831815.8266 | E101: 3.774054339 | F101: =F25+F44+F63+F82 -> 3139318.13 | H101: =H25+H44+H63+H82 -> 807319.3216 | I101: 0.8060934523 | J101: =J25+J44+J63+J82 -> 650774.819 | L101: =L25+L44+L63+L82 -> 866713.3216 | M101: 1.952568928 | N101: =N25+N44+N63+N82 -> 1692317.501 | P101: 2343092.32
B102: March | D102: 831623.8173 | E102: 3.777550576 | F102: 3141501.03 | H102: 800189.7621 | I102: 0.8068226513 | J102: 645611.2254 | L102: 864744.7621 | M102: 1.954178191 | N102: 1689865.355 | P102: 2335476.58
B103: April | D103: 724372.7895 | E103: 3.768922204 | F103: 2730104.69 | H103: 718045.5374 | I103: 0.8047051046 | J103: 577814.9093 | L103: 781570.5374 | M103: 1.95024336 | N103: 1524252.751 | P103: 2102067.66
B104: May | D104: 806265.4303 | E104: 3.765062132 | F104: 3035639.44 | H104: 790491.9163 | I104: 0.80356028 | J104: 635207.9056 | L104: 854122.9163 | M104: 1.947780036 | N104: 1663643.564 | P104: 2298851.47
B105: June | D105: 981219.6904 | E105: 3.769996705 | F105: 3699195 | H105: 960321.2863 | I105: 0.8051840953 | J105: 773235.4261 | L105: 1023727.286 | M105: 1.950568389 | N105: 1996850.084 | P105: 2770085.51
B106: July | D106: 972713.6502 | E106: 3.770606375 | F106: 3667720.29 | H106: 941936.7401 | I106: 0.8051947958 | J106: 758442.5611 | L106: 1008199.74 | M106: 1.950708397 | N106: 1966703.699 | P106: 2725146.26
B107: August | D107: 979875.2508 | E107: 3.7710194 | F107: 3695128.58 | H107: 951074.4537 | I107: 0.8053980442 | J107: 765993.5049 | L107: 1017690.454 | M107: 1.95110229 | N107: 1985618.175 | P107: 2751611.68
B108: September | D108: 969307.3622 | E108: 3.781814719 | F108: 3665740.85 | H108: 932500.5991 | I108: 0.8081427402 | J108: 753593.5894 | L108: 999225.5991 | M108: 1.956567238 | N108: 1955052.071 | P108: 2708645.66
B109: October | D109: 694307.9102 | E109: 3.771316921 | F109: 2618455.17 | H109: 707680.9604 | I109: 0.8059975133 | J109: 570389.0942 | L109: 760025.9604 | M109: 1.952389909 | N109: 1483867.016 | P109: 2054256.11
B110: November | D110: 808694.7678 | E110: 3.773099718 | F110: 3051286 | H110: 776929.4802 | I110: 0.8058284414 | J110: 626071.8721 | L110: 834012.4802 | M110: 1.952043664 | N110: 1628028.778 | P110: 2254100.65
B111: December | D111: 811846.6316 | E111: 3.771333514 | F111: 3061744.41 | H111: 791332.1982 | I111: 0.8055379779 | J111: 637448.1389 | L111: 851314.1982 | M111: 1.951532354 | N111: 1661367.201 | P111: 2298815.34
B113: Total | D113: =SUM(D100:D111) -> 10315513.65 | E113: =IF(D113<>0,F113/D113,0) -> 3.77170113 | F113: =SUM(F100:F111) -> 38907034.48 | H113: =SUM(H100:H111) -> 10053570.78 | I113: =IF(H113<>0,J113/H113,0) -> 0.8054976272 | J113: =SUM(J100:J111) -> 8098127.404 | L113: =SUM(L100:L111) -> 10797880.78 | M113: =IF(L113<>0,N113/L113,0) -> 1.95140603 | N113: =SUM(N100:N111) -> 21071049.66 | P113: =SUM(P100:P111) -> 29169177.06
N115: Low Voltage Switchgear Credit (if applicable) | P115: ='5. UTRs and Sub-Transmission'!E95 -> 0
N117: Total including deduction for Low Voltage Switchgear Credit | P117: =P113+P115 -> 29169177.06

Sheet 7. Current Wholesale
B13: The purpose of this sheet is to calculate the expected billing when current 2015 Uniform Transmission Rates are applied against historical 2014 transmission units.
B20: IESO | D20: Network | H20: Line Connection | L20: Transformation Connection | P20: Total Line
B22: Month | D22: Units Billed | E22: Rate | F22: Amount | H22: Units Billed | I22: Rate | J22: Amount | L22: Units Billed | M22: Rate | N22: Amount | P22: Amount
B24: January | D24: ='6. Historical Wholesale'!D24 -> 818629 | E24: ='5. UTRs and Sub-Transmission'!G22 -> 3.78 | F24: =D24*E24 -> 3094417.62 | H24: ='6. Historical Wholesale'!H24 -> 790046 | I24: ='5. UTRs and Sub-Transmission'!G24 -> 0.86 | J24: =H24*I24 -> 679439.56 | L24: ='6. Historical Wholesale'!L24 -> 850831 | M24: ='5. UTRs and Sub-Transmission'!G26 -> 2 | N24: =L24*M24 -> 1701662 | P24: =J24+N24 -> 2381101.56
B25: February | D25: ='6. Historical Wholesale'!D25 -> 767039 | E25: =E24 -> 3.78 | F25: =D25*E25 -> 2899407.42 | H25: ='6. Historical Wholesale'!H25 -> 741278 | I25: =I24 -> 0.86 | J25: =H25*I25 -> 637499.08 | L25: ='6. Historical Wholesale'!L25 -> 800672 | M25: =M24 -> 2 | N25: =L25*M25 -> 1601344 | P25: 2238843.08
B26: March | D26: ='6. Historical Wholesale'!D26 -> 771790 | E26: =E25 -> 3.78 | F26: 2917366.2 | H26: ='6. Historical Wholesale'!H26 -> 738164 | I26: =I25 -> 0.86 | J26: 634821.04 | L26: ='6. Historical Wholesale'!L26 -> 802719 | M26: =M25 -> 2 | N26: 1605438 | P26: 2240259.04
B27: April | D27: ='6. Historical Wholesale'!D27 -> 661662 | E27: 3.78 | F27: 2501082.36 | H27: ='6. Historical Wholesale'!H27 -> 653443 | I27: 0.86 | J27: 561960.98 | L27: ='6. Historical Wholesale'!L27 -> 716968 | M27: 2 | N27: 1433936 | P27: 1995896.98
B28: May | D28: ='6. Historical Wholesale'!D28 -> 731190 | E28: 3.78 | F28: 2763898.2 | H28: ='6. Historical Wholesale'!H28 -> 714048 | I28: 0.86 | J28: 614081.28 | L28: ='6. Historical Wholesale'!L28 -> 777679 | M28: 2 | N28: 1555358 | P28: 2169439.28
B29: June | D29: ='6. Historical Wholesale'!D29 -> 898060 | E29: 3.78 | F29: 3394666.8 | H29: ='6. Historical Wholesale'!H29 -> 876627 | I29: 0.86 | J29: 753899.22 | L29: ='6. Historical Wholesale'!L29 -> 940033 | M29: 2 | N29: 1880066 | P29: 2633965.22
B30: July | D30: ='6. Historical Wholesale'!D30 -> 891280 | E30: 3.78 | F30: 3369038.4 | H30: ='6. Historical Wholesale'!H30 -> 859904 | I30: 0.86 | J30: 739517.44 | L30: ='6. Historical Wholesale'!L30 -> 926167 | M30: 2 | N30: 1852334 | P30: 2591851.44
B31: August | D31: ='6. Historical Wholesale'!D31 -> 898528 | E31: 3.78 | F31: 3396435.84 | H31: ='6. Historical Wholesale'!H31 -> 869383 | I31: 0.86 | J31: 747669.38 | L31: ='6. Historical Wholesale'!L31 -> 935999 | M31: 2 | N31: 1871998 | P31: 2619667.38
B32: September | D32: ='6. Historical Wholesale'!D32 -> 906573 | E32: 3.78 | F32: 3426845.94 | H32: ='6. Historical Wholesale'!H32 -> 867460 | I32: 0.86 | J32: 746015.6 | L32: ='6. Historical Wholesale'!L32 -> 934185 | M32: 2 | N32: 1868370 | P32: 2614385.6
B33: October | D33: ='6. Historical Wholesale'!D33 -> 637018 | E33: 3.78 | F33: 2407928.04 | H33: ='6. Historical Wholesale'!H33 -> 649391 | I33: 0.86 | J33: 558476.26 | L33: ='6. Historical Wholesale'!L33 -> 701736 | M33: 2 | N33: 1403472 | P33: 1961948.26
B34: November | D34: ='6. Historical Wholesale'!D34 -> 744410 | E34: 3.78 | F34: 2813869.8 | H34: ='6. Historical Wholesale'!H34 -> 712163 | I34: 0.86 | J34: 612460.18 | L34: ='6. Historical Wholesale'!L34 -> 769246 | M34: 2 | N34: 1538492 | P34: 2150952.18
B35: December | D35: ='6. Historical Wholesale'!D35 -> 744881 | E35: 3.78 | F35: 2815650.18 | H35: ='6. Historical Wholesale'!H35 -> 724013 | I35: 0.86 | J35: 622651.18 | L35: ='6. Historical Wholesale'!L35 -> 783995 | M35: 2 | N35: 1567990 | P35: 2190641.18
B37: Total | D37: =SUM(D24:D35) -> 9471060 | E37: =IF(D37<>0,F37/D37,0) -> 3.78 | F37: =SUM(F24:F35) -> 35800606.8 | H37: =SUM(H24:H35) -> 9195920 | I37: =IF(H37<>0,J37/H37,0) -> 0.86 | J37: =SUM(J24:J35) -> 7908491.2 | L37: =SUM(L24:L35) -> 9940230 | M37: =IF(L37<>0,N37/L37,0) -> 2 | N37: =SUM(N24:N35) -> 19880460 | P37: =SUM(P24:P35) -> 27788951.2
B39: Hydro One | D39: Network | H39: Line Connection | L39: Transformation Connection | P39: Total Line
B41: Month | D41: Units Billed | E41: Rate | F41: Amount | H41: Units Billed | I41: Rate | J41: Amount | L41: Units Billed | M41: Rate | N41: Amount | P41: Amount
B43: January | D43: ='6. Historical Wholesale'!D43 -> 84841.52012 | E43: ='5. UTRs and Sub-Transmission'!G35+'5. UTRs and Sub-Transmission'!G79 -> 3.4121 | F43: =D43*E43 -> 289487.7508 | H43: ='6. Historical Wholesale'!H43 -> 85702.51982 | I43: ='5. UTRs and Sub-Transmission'!G37+'5. UTRs and Sub-Transmission'!G81 -> 0.7879 | J43: =H43*I43 -> 67525.01537 | L43: ='6. Historical Wholesale'!L43 -> 85702.51982 | M43: ='5. UTRs and Sub-Transmission'!G39 -> 1.8018 | N43: =L43*M43 -> 154418.8002 | P43: =J43+N43 -> 221943.8156
B44: February | D44: ='6. Historical Wholesale'!D44 -> 64776.82663 | E44: =E43 -> 3.4121 | F44: =D44*E44 -> 221025.0101 | H44: ='6. Historical Wholesale'!H44 -> 66041.32159 | I44: =I43 -> 0.7879 | J44: =H44*I44 -> 52033.95728 | L44: ='6. Historical Wholesale'!L44 -> 66041.32159 | M44: =M43 -> 1.8018 | N44: =L44*M44 -> 118993.2532 | P44: 171027.2105
B45: March | D45: ='6. Historical Wholesale'!D45 -> 59833.81734 | E45: =E44 -> 3.4121 | F45: 204158.9681 | H45: ='6. Historical Wholesale'!H45 -> 62025.76211 | I45: =I44 -> 0.7879 | J45: 48870.09797 | L45: ='6. Historical Wholesale'!L45 -> 62025.76211 | M45: =M44 -> 1.8018 | N45: 111758.0182 | P45: 160628.1161
B46: April | D46: ='6. Historical Wholesale'!D46 -> 62710.78947 | E46: 3.4121 | F46: 213975.4848 | H46: ='6. Historical Wholesale'!H46 -> 64602.53744 | I46: 0.7879 | J46: 50900.33925 | L46: ='6. Historical Wholesale'!L46 -> 64602.53744 | M46: =M45 -> 1.8018 | N46: 116400.852 | P46: 167301.1912
B47: May | D47: ='6. Historical Wholesale'!D47 -> 75075.43034 | E47: 3.4121 | F47: 256164.8759 | H47: ='6. Historical Wholesale'!H47 -> 76443.9163 | I47: 0.7879 | J47: 60230.16165 | L47: ='6. Historical Wholesale'!L47 -> 76443.9163 | M47: 1.8018 | N47: 137736.6484 | P47: 197966.81
B48: June | D48: ='6. Historical Wholesale'!D48 -> 83159.6904 | E48: 3.4121 | F48: 283749.1796 | H48: ='6. Historical Wholesale'!H48 -> 83694.28634 | I48: 0.7879 | J48: 65942.72821 | L48: ='6. Historical Wholesale'!L48 -> 83694.28634 | M48: 1.8018 | N48: 150800.3651 | P48: 216743.0933
B49: July | D49: ='6. Historical Wholesale'!D49 -> 81433.65015 | E49: 3.4121 | F49: 277859.7577 | H49: ='6. Historical Wholesale'!H49 -> 82032.74009 | I49: 0.7879 | J49: 64633.59592 | L49: ='6. Historical Wholesale'!L49 -> 82032.74009 | M49: 1.8018 | N49: 147806.5911 | P49: 212440.187
B50: August | D50: ='6. Historical Wholesale'!D50 -> 81347.25077 | E50: 3.4121 | F50: 277564.9544 | H50: ='6. Historical Wholesale'!H50 -> 81691.45374 | I50: 0.7879 | J50: 64364.69641 | L50: ='6. Historical Wholesale'!L50 -> 81691.45374 | M50: 1.8018 | N50: 147191.6614 | P50: 211556.3578
B51: September | D51: ='6. Historical Wholesale'!D51 -> 62734.36223 | E51: 3.4121 | F51: 214055.9174 | H51: ='6. Historical Wholesale'!H51 -> 65040.59912 | I51: 0.7879 | J51: 51245.48805 | L51: ='6. Historical Wholesale'!L51 -> 65040.59912 | M51: 1.8018 | N51: 117190.1515 | P51: 168435.6395
B52: October | D52: ='6. Historical Wholesale'!D52 -> 57289.91022 | E52: 3.4121 | F52: 195478.9027 | H52: ='6. Historical Wholesale'!H52 -> 58289.96035 | I52: 0.7879 | J52: 45926.65976 | L52: ='6. Historical Wholesale'!L52 -> 58289.96035 | M52: 1.8018 | N52: 105026.8506 | P52: 150953.5103
B53: November | D53: ='6. Historical Wholesale'!D53 -> 64284.7678 | E53: 3.4121 | F53: 219346.0562 | H53: ='6. Historical Wholesale'!H53 -> 64766.48018 | I53: 0.7879 | J53: 51029.50973 | L53: ='6. Historical Wholesale'!L53 -> 64766.48018 | M53: 1.8018 | N53: 116696.244 | P53: 167725.7537
B54: December | D54: ='6. Historical Wholesale'!D54 -> 66965.63158 | E54: 3.4121 | F54: 228493.4315 | H54: ='6. Historical Wholesale'!H54 -> 67319.19824 | I54: 0.7879 | J54: 53040.79629 | L54: ='6. Historical Wholesale'!L54 -> 67319.19824 | M54: 1.8018 | N54: 121295.7314 | P54: 174336.5277
B56: Total | D56: =SUM(D43:D54) -> 844453.6471 | E56: =IF(D56<>0,F56/D56,0) -> 3.4121 | F56: =SUM(F43:F54) -> 2881360.289 | H56: =SUM(H43:H54) -> 857650.7753 | I56: =IF(H56<>0,J56/H56,0) -> 0.7879 | J56: =SUM(J43:J54) -> 675743.0459 | L56: =SUM(L43:L54) -> 857650.7753 | M56: =IF(L56<>0,N56/L56,0) -> 1.8018 | N56: =SUM(N43:N54) -> 1545315.167 | P56: =SUM(P43:P54) -> 2221058.213
B58: ='6. Historical Wholesale'!B58 -> Add Extra Host Here (I) | D58: Network | H58: Line Connection | L58: Transformation Connection | P58: Total Line
B60: Month | D60: Units Billed | E60: Rate | F60: Amount | H60: Units Billed | I60: Rate | J60: Amount | L60: Units Billed | M60: Rate | N60: Amount | P60: Amount
B62: January | D62: ='6. Historical Wholesale'!D62 -> 0 | E62: ='5. UTRs and Sub-Transmission'!G50 -> 0 | F62: =D62*E62 -> 0 | H62: ='6. Historical Wholesale'!H62 -> 0 | I62: ='5. UTRs and Sub-Transmission'!G52 -> 0 | J62: =H62*I62 -> 0 | L62: ='6. Historical Wholesale'!L62 -> 0 | M62: ='5. UTRs and Sub-Transmission'!G54 -> 0 | N62: =L62*M62 -> 0 | P62: =J62+N62 -> 0
B63: February | D63: ='6. Historical Wholesale'!D63 -> 0 | E63: =E62 -> 0 | F63: =D63*E63 -> 0 | H63: ='6. Historical Wholesale'!H63 -> 0 | I63: =I62 -> 0 | J63: =H63*I63 -> 0 | L63: ='6. Historical Wholesale'!L63 -> 0 | M63: =M62 -> 0 | N63: =L63*M63 -> 0 | P63: 0
B64: March | D64: ='6. Historical Wholesale'!D64 -> 0 | E64: =E63 -> 0 | F64: 0 | H64: ='6. Historical Wholesale'!H64 -> 0 | I64: =I63 -> 0 | J64: 0 | L64: ='6. Historical Wholesale'!L64 -> 0 | M64: =M63 -> 0 | N64: 0 | P64: 0
B65: April | D65: ='6. Historical Wholesale'!D65 -> 0 | E65: 0 | F65: 0 | H65: ='6. Historical Wholesale'!H65 -> 0 | I65: 0 | J65: 0 | L65: ='6. Historical Wholesale'!L65 -> 0 | M65: =M64 -> 0 | N65: 0 | P65: 0
B66: May | D66: ='6. Historical Wholesale'!D66 -> 0 | E66: 0 | F66: 0 | H66: ='6. Historical Wholesale'!H66 -> 0 | I66: 0 | J66: 0 | L66: ='6. Historical Wholesale'!L66 -> 0 | M66: 0 | N66: 0 | P66: 0
B67: June | D67: ='6. Historical Wholesale'!D67 -> 0 | E67: 0 | F67: 0 | H67: ='6. Historical Wholesale'!H67 -> 0 | I67: 0 | J67: 0 | L67: ='6. Historical Wholesale'!L67 -> 0 | M67: 0 | N67: 0 | P67: 0
B68: July | D68: ='6. Historical Wholesale'!D68 -> 0 | E68: 0 | F68: 0 | H68: ='6. Historical Wholesale'!H68 -> 0 | I68: 0 | J68: 0 | L68: ='6. Historical Wholesale'!L68 -> 0 | M68: 0 | N68: 0 | P68: 0
B69: August | D69: ='6. Historical Wholesale'!D69 -> 0 | E69: 0 | F69: 0 | H69: ='6. Historical Wholesale'!H69 -> 0 | I69: 0 | J69: 0 | L69: ='6. Historical Wholesale'!L69 -> 0 | M69: 0 | N69: 0 | P69: 0
B70: September | D70: ='6. Historical Wholesale'!D70 -> 0 | E70: 0 | F70: 0 | H70: ='6. Historical Wholesale'!H70 -> 0 | I70: 0 | J70: 0 | L70: ='6. Historical Wholesale'!L70 -> 0 | M70: 0 | N70: 0 | P70: 0
B71: October | D71: ='6. Historical Wholesale'!D71 -> 0 | E71: 0 | F71: 0 | H71: ='6. Historical Wholesale'!H71 -> 0 | I71: 0 | J71: 0 | L71: ='6. Historical Wholesale'!L71 -> 0 | M71: 0 | N71: 0 | P71: 0
B72: November | D72: ='6. Historical Wholesale'!D72 -> 0 | E72: 0 | F72: 0 | H72: ='6. Historical Wholesale'!H72 -> 0 | I72: 0 | J72: 0 | L72: ='6. Historical Wholesale'!L72 -> 0 | M72: 0 | N72: 0 | P72: 0
B73: December | D73: ='6. Historical Wholesale'!D73 -> 0 | E73: 0 | F73: 0 | H73: ='6. Historical Wholesale'!H73 -> 0 | I73: 0 | J73: 0 | L73: ='6. Historical Wholesale'!L73 -> 0 | M73: 0 | N73: 0 | P73: 0
B75: Total | D75: =SUM(D62:D73) -> 0 | E75: =IF(D75<>0,F75/D75,0) -> 0 | F75: =SUM(F62:F73) -> 0 | H75: =SUM(H62:H73) -> 0 | I75: =IF(H75<>0,J75/H75,0) -> 0 | J75: =SUM(J62:J73) -> 0 | L75: =SUM(L62:L73) -> 0 | M75: =IF(L75<>0,N75/L75,0) -> 0 | N75: =SUM(N62:N73) -> 0 | P75: =SUM(P62:P73) -> 0
B77: ='6. Historical Wholesale'!B77 -> Add Extra Host Here (II) | D77: Network | H77: Line Connection | L77: Transformation Connection | P77: Total Line
B79: Month | D79: Units Billed | E79: Rate | F79: Amount | H79: Units Billed | I79: Rate | J79: Amount | L79: Units Billed | M79: Rate | N79: Amount | P79: Amount
B81: January | D81: ='6. Historical Wholesale'!D81 -> 0 | E81: ='5. UTRs and Sub-Transmission'!G65 -> 0 | F81: =D81*E81 -> 0 | H81: ='6. Historical Wholesale'!H81 -> 0 | I81: ='5. UTRs and Sub-Transmission'!G67 -> 0 | J81: =H81*I81 -> 0 | L81: ='6. Historical Wholesale'!L81 -> 0 | M81: ='5. UTRs and Sub-Transmission'!G69 -> 0 | N81: =L81*M81 -> 0 | P81: =J81+N81 -> 0
B82: February | D82: ='6. Historical Wholesale'!D82 -> 0 | E82: =E81 -> 0 | F82: =D82*E82 -> 0 | H82: ='6. Historical Wholesale'!H82 -> 0 | I82: =I81 -> 0 | J82: =H82*I82 -> 0 | L82: ='6. Historical Wholesale'!L82 -> 0 | M82: =M81 -> 0 | N82: =L82*M82 -> 0 | P82: 0
B83: March | D83: ='6. Historical Wholesale'!D83 -> 0 | E83: =E82 -> 0 | F83: 0 | H83: ='6. Historical Wholesale'!H83 -> 0 | I83: =I82 -> 0 | J83: 0 | L83: ='6. Historical Wholesale'!L83 -> 0 | M83: =M82 -> 0 | N83: 0 | P83: 0
B84: April | D84: ='6. Historical Wholesale'!D84 -> 0 | E84: 0 | F84: 0 | H84: ='6. Historical Wholesale'!H84 -> 0 | I84: 0 | J84: 0 | L84: ='6. Historical Wholesale'!L84 -> 0 | M84: =M83 -> 0 | N84: 0 | P84: 0
B85: May | D85: ='6. Historical Wholesale'!D85 -> 0 | E85: 0 | F85: 0 | H85: ='6. Historical Wholesale'!H85 -> 0 | I85: 0 | J85: 0 | L85: ='6. Historical Wholesale'!L85 -> 0 | M85: 0 | N85: 0 | P85: 0
B86: June | D86: ='6. Historical Wholesale'!D86 -> 0 | E86: 0 | F86: 0 | H86: ='6. Historical Wholesale'!H86 -> 0 | I86: 0 | J86: 0 | L86: ='6. Historical Wholesale'!L86 -> 0 | M86: 0 | N86: 0 | P86: 0
B87: July | D87: ='6. Historical Wholesale'!D87 -> 0 | E87: 0 | F87: 0 | H87: ='6. Historical Wholesale'!H87 -> 0 | I87: 0 | J87: 0 | L87: ='6. Historical Wholesale'!L87 -> 0 | M87: 0 | N87: 0 | P87: 0
B88: August | D88: ='6. Historical Wholesale'!D88 -> 0 | E88: 0 | F88: 0 | H88: ='6. Historical Wholesale'!H88 -> 0 | I88: 0 | J88: 0 | L88: ='6. Historical Wholesale'!L88 -> 0 | M88: 0 | N88: 0 | P88: 0
B89: September | D89: ='6. Historical Wholesale'!D89 -> 0 | E89: 0 | F89: 0 | H89: ='6. Historical Wholesale'!H89 -> 0 | I89: 0 | J89: 0 | L89: ='6. Historical Wholesale'!L89 -> 0 | M89: 0 | N89: 0 | P89: 0
B90: October | D90: ='6. Historical Wholesale'!D90 -> 0 | E90: 0 | F90: 0 | H90: ='6. Historical Wholesale'!H90 -> 0 | I90: 0 | J90: 0 | L90: ='6. Historical Wholesale'!L90 -> 0 | M90: 0 | N90: 0 | P90: 0
B91: November | D91: ='6. Historical Wholesale'!D91 -> 0 | E91: 0 | F91: 0 | H91: ='6. Historical Wholesale'!H91 -> 0 | I91: 0 | J91: 0 | L91: ='6. Historical Wholesale'!L91 -> 0 | M91: 0 | N91: 0 | P91: 0
B92: December | D92: ='6. Historical Wholesale'!D92 -> 0 | E92: 0 | F92: 0 | H92: ='6. Historical Wholesale'!H92 -> 0 | I92: 0 | J92: 0 | L92: ='6. Historical Wholesale'!L92 -> 0 | M92: 0 | N92: 0 | P92: 0
B94: Total | D94: =SUM(D81:D92) -> 0 | E94: =IF(D94<>0,F94/D94,0) -> 0 | F94: =SUM(F81:F92) -> 0 | H94: =SUM(H81:H92) -> 0 | I94: =IF(H94<>0,J94/H94,0) -> 0 | J94: =SUM(J81:J92) -> 0 | L94: =SUM(L81:L92) -> 0 | M94: =IF(L94<>0,N94/L94,0) -> 0 | N94: =SUM(N81:N92) -> 0 | P94: =SUM(P81:P92) -> 0
B96: Total | D96: Network | H96: Line Connection | L96: Transformation Connection | P96: Total Line
B98: Month | D98: Units Billed | E98: Rate | F98: Amount | H98: Units Billed | I98: Rate | J98: Amount | L98: Units Billed | M98: Rate | N98: Amount | P98: Amount
B100: January | D100: =D24+D43+D62+D81 -> 903470.5201 | E100: =IF(D100<>0,F100/D100,0) -> 3.745451894 | F100: =F24+F43+F62+F81 -> 3383905.371 | H100: =H24+H43+H62+H81 -> 875748.5198 | I100: =IF(H100<>0,J100/H100,0) -> 0.8529441483 | J100: =J24+J43+J62+J81 -> 746964.5754 | L100: =L24+L43+L62+L81 -> 936533.5198 | M100: =IF(L100<>0,N100/L100,0) -> 1.981862647 | N100: =N24+N43+N62+N81 -> 1856080.8 | P100: =J100+N100 -> 2603045.376
B101: February | D101: =D25+D44+D63+D82 -> 831815.8266 | E101: 3.751350155 | F101: =F25+F44+F63+F82 -> 3120432.43 | H101: =H25+H44+H63+H82 -> 807319.3216 | I101: 0.8541019877 | J101: =J25+J44+J63+J82 -> 689533.0373 | L101: =L25+L44+L63+L82 -> 866713.3216 | M101: 1.984897671 | N101: =N25+N44+N63+N82 -> 1720337.253 | P101: 2409870.291
B102: March | D102: 831623.8173 | E102: 3.753530266 | F102: 3121525.168 | H102: 800189.7621 | I102: 0.8544112539 | J102: 683691.138 | L102: 864744.7621 | M102: 1.985783659 | N102: 1717196.018 | P102: 2400887.156
B103: April | D103: 724372.7895 | E103: 3.748149964 | F103: 2715057.845 | H103: 718045.5374 | I103: 0.853513165 | J103: 612861.3193 | L103: 781570.5374 | M103: 1.983617316 | N103: 1550336.852 | P103: 2163198.171
B104: May | D104: 806265.4303 | E104: 3.74574298 | F104: 3020063.076 | H104: 790491.9163 | I104: 0.8530276246 | J104: 674311.4417 | L104: 854122.9163 | M104: 1.98226112 | N104: 1693094.648 | P104: 2367406.09
B105: June | D105: 981219.6904 | E105: 3.748819979 | F105: 3678415.98 | H105: 960321.2863 | I105: 0.8537163134 | J105: 819841.9482 | L105: 1023727.286 | M105: 1.983796263 | N105: 2030866.365 | P105: 2850708.313
B106: July | D106: 972713.6502 | E106: 3.749200144 | F106: 3646898.158 | H106: 941936.7401 | I106: 0.8537208516 | J106: 804151.0359 | L106: 1008199.74 | M106: 1.983873345 | N106: 2000140.591 | P106: 2804291.627
B107: August | D107: 979875.2508 | E107: 3.74945769 | F107: 3674000.794 | H107: 951074.4537 | I107: 0.8538070529 | J107: 812034.0764 | L107: 1017690.454 | M107: 1.984090205 | N107: 2019189.661 | P107: 2831223.738
B108: September | D108: 969307.3622 | E108: 3.756189212 | F108: 3640901.857 | H108: 932500.5991 | I108: 0.8549711269 | J108: 797261.088 | L108: 999225.5991 | M108: 1.987098963 | N108: 1985560.151 | P108: 2782821.24
B109: October | D109: 694307.9102 | E109: 3.749643212 | F109: 2603406.943 | H109: 707680.9604 | I109: 0.8540612983 | J109: 604402.9198 | L109: 760025.9604 | M109: 1.984799111 | N109: 1508498.851 | P109: 2112901.77
B110: November | D110: 808694.7678 | E110: 3.750754892 | F110: 3033215.856 | H110: 776929.4802 | I110: 0.8539895919 | J110: 663489.6897 | L110: 834012.4802 | M110: 1.984608484 | N110: 1655188.244 | P110: 2318677.934
B111: December | D111: 811846.6316 | E111: 3.749653559 | F111: 3044143.612 | H111: 791332.1982 | I111: 0.8538664012 | J111: 675691.9763 | L111: 851314.1982 | M111: 1.984326979 | N111: 1689285.731 | P111: 2364977.708
B113: Total | D113: =SUM(D100:D111) -> 10315513.65 | E113: =IF(D113<>0,F113/D113,0) -> 3.749882789 | F113: =SUM(F100:F111) -> 38681967.09 | H113: =SUM(H100:H111) -> 10053570.78 | I113: =IF(H113<>0,J113/H113,0) -> 0.8538492878 | J113: =SUM(J100:J111) -> 8584234.246 | L113: =SUM(L100:L111) -> 10797880.78 | M113: =IF(L113<>0,N113/L113,0) -> 1.984257431 | N113: =SUM(N100:N111) -> 21425775.17 | P113: =SUM(P100:P111) -> 30010009.41
N115: Low Voltage Switchgear Credit (if applicable) | P115: ='5. UTRs and Sub-Transmission'!G95 -> 0
N117: Total including deduction for Low Voltage Switchgear Credit | P117: =P113+P115 -> 30010009.41

Sheet 8. Forecast Wholesale
B13: The purpose of this sheet is to calculate the expected billing when forecasted 2016 Uniform Transmission Rates are applied against historical 2014 transmission units.
B20: IESO | D20: Network | H20: Line Connection | L20: Transformation Connection | P20: Total Line
B22: Month | D22: Units Billed | E22: Rate | F22: Amount | H22: Units Billed | I22: Rate | J22: Amount | L22: Units Billed | M22: Rate | N22: Amount | P22: Amount
B24: January | D24: ='6. Historical Wholesale'!D24 -> 818629 | E24: ='5. UTRs and Sub-Transmission'!I22 -> 3.78 | F24: =D24*E24 -> 3094417.62 | H24: ='6. Historical Wholesale'!H24 -> 790046 | I24: ='5. UTRs and Sub-Transmission'!I24 -> 0.86 | J24: =H24*I24 -> 679439.56 | L24: ='6. Historical Wholesale'!L24 -> 850831 | M24: ='5. UTRs and Sub-Transmission'!I26 -> 2 | N24: =L24*M24 -> 1701662 | P24: =J24+N24 -> 2381101.56
B25: February | D25: ='6. Historical Wholesale'!D25 -> 767039 | E25: =E24 -> 3.78 | F25: 2899407.42 | H25: ='6. Historical Wholesale'!H25 -> 741278 | I25: =I24 -> 0.86 | J25: 637499.08 | L25: ='6. Historical Wholesale'!L25 -> 800672 | M25: =M24 -> 2 | N25: 1601344 | P25: 2238843.08
B26: March | D26: ='6. Historical Wholesale'!D26 -> 771790 | E26: 3.78 | F26: 2917366.2 | H26: ='6. Historical Wholesale'!H26 -> 738164 | I26: 0.86 | J26: 634821.04 | L26: ='6. Historical Wholesale'!L26 -> 802719 | M26: 2 | N26: 1605438 | P26: 2240259.04
B27: April | D27: ='6. Historical Wholesale'!D27 -> 661662 | E27: 3.78 | F27: 2501082.36 | H27: ='6. Historical Wholesale'!H27 -> 653443 | I27: 0.86 | J27: 561960.98 | L27: ='6. Historical Wholesale'!L27 -> 716968 | M27: 2 | N27: 1433936 | P27: 1995896.98
B28: May | D28: ='6. Historical Wholesale'!D28 -> 731190 | E28: 3.78 | F28: 2763898.2 | H28: ='6. Historical Wholesale'!H28 -> 714048 | I28: 0.86 | J28: 614081.28 | L28: ='6. Historical Wholesale'!L28 -> 777679 | M28: 2 | N28: 1555358 | P28: 2169439.28
B29: June | D29: ='6. Historical Wholesale'!D29 -> 898060 | E29: 3.78 | F29: 3394666.8 | H29: ='6. Historical Wholesale'!H29 -> 876627 | I29: 0.86 | J29: 753899.22 | L29: ='6. Historical Wholesale'!L29 -> 940033 | M29: 2 | N29: 1880066 | P29: 2633965.22
B30: July | D30: ='6. Historical Wholesale'!D30 -> 891280 | E30: 3.78 | F30: 3369038.4 | H30: ='6. Historical Wholesale'!H30 -> 859904 | I30: 0.86 | J30: 739517.44 | L30: ='6. Historical Wholesale'!L30 -> 926167 | M30: 2 | N30: 1852334 | P30: 2591851.44
B31: August | D31: ='6. Historical Wholesale'!D31 -> 898528 | E31: 3.78 | F31: 3396435.84 | H31: ='6. Historical Wholesale'!H31 -> 869383 | I31: 0.86 | J31: 747669.38 | L31: ='6. Historical Wholesale'!L31 -> 935999 | M31: 2 | N31: 1871998 | P31: 2619667.38
B32: September | D32: ='6. Historical Wholesale'!D32 -> 906573 | E32: 3.78 | F32: 3426845.94 | H32: ='6. Historical Wholesale'!H32 -> 867460 | I32: 0.86 | J32: 746015.6 | L32: ='6. Historical Wholesale'!L32 -> 934185 | M32: 2 | N32: 1868370 | P32: 2614385.6
B33: October | D33: ='6. Historical Wholesale'!D33 -> 637018 | E33: 3.78 | F33: 2407928.04 | H33: ='6. Historical Wholesale'!H33 -> 649391 | I33: 0.86 | J33: 558476.26 | L33: ='6. Historical Wholesale'!L33 -> 701736 | M33: 2 | N33: 1403472 | P33: 1961948.26
B34: November | D34: ='6. Historical Wholesale'!D34 -> 744410 | E34: 3.78 | F34: 2813869.8 | H34: ='6. Historical Wholesale'!H34 -> 712163 | I34: 0.86 | J34: 612460.18 | L34: ='6. Historical Wholesale'!L34 -> 769246 | M34: 2 | N34: 1538492 | P34: 2150952.18
B35: December | D35: ='6. Historical Wholesale'!D35 -> 744881 | E35: 3.78 | F35: 2815650.18 | H35: ='6. Historical Wholesale'!H35 -> 724013 | I35: 0.86 | J35: 622651.18 | L35: ='6. Historical Wholesale'!L35 -> 783995 | M35: 2 | N35: 1567990 | P35: 2190641.18
B37: Total | D37: =SUM(D24:D35) -> 9471060 | E37: =IF(D37<>0,F37/D37,0) -> 3.78 | F37: =SUM(F24:F35) -> 35800606.8 | H37: =SUM(H24:H35) -> 9195920 | I37: =IF(H37<>0,J37/H37,0) -> 0.86 | J37: =SUM(J24:J35) -> 7908491.2 | L37: =SUM(L24:L35) -> 9940230 | M37: =IF(L37<>0,N37/L37,0) -> 2 | N37: =SUM(N24:N35) -> 19880460 | P37: =SUM(P24:P35) -> 27788951.2
B39: Hydro One | D39: Network | H39: Line Connection | L39: Transformation Connection | P39: Total Line
B41: Month | D41: Units Billed | E41: Rate | F41: Amount | H41: Units Billed | I41: Rate | J41: Amount | L41: Units Billed | M41: Rate | N41: Amount | P41: Amount
B43: January | D43: ='6. Historical Wholesale'!D43 -> 84841.52012 | E43: ='5. UTRs and Sub-Transmission'!I35+'5. UTRs and Sub-Transmission'!I79 -> 3.4121 | F43: =D43*E43 -> 289487.7508 | H43: ='6. Historical Wholesale'!H43 -> 85702.51982 | I43: ='5. UTRs and Sub-Transmission'!I37+'5. UTRs and Sub-Transmission'!I81 -> 0.7879 | J43: =H43*I43 -> 67525.01537 | L43: ='6. Historical Wholesale'!L43 -> 85702.51982 | M43: ='5. UTRs and Sub-Transmission'!I39 -> 1.8018 | N43: =L43*M43 -> 154418.8002 | P43: =J43+N43 -> 221943.8156
B44: February | D44: ='6. Historical Wholesale'!D44 -> 64776.82663 | E44: =E43 -> 3.4121 | F44: 221025.0101 | H44: ='6. Historical Wholesale'!H44 -> 66041.32159 | I44: =I43 -> 0.7879 | J44: 52033.95728 | L44: ='6. Historical Wholesale'!L44 -> 66041.32159 | M44: =M43 -> 1.8018 | N44: 118993.2532 | P44: 171027.2105
B45: March | D45: ='6. Historical Wholesale'!D45 -> 59833.81734 | E45: 3.4121 | F45: 204158.9681 | H45: ='6. Historical Wholesale'!H45 -> 62025.76211 | I45: 0.7879 | J45: 48870.09797 | L45: ='6. Historical Wholesale'!L45 -> 62025.76211 | M45: 1.8018 | N45: 111758.0182 | P45: 160628.1161
B46: April | D46: ='6. Historical Wholesale'!D46 -> 62710.78947 | E46: 3.4121 | F46: 213975.4848 | H46: ='6. Historical Wholesale'!H46 -> 64602.53744 | I46: 0.7879 | J46: 50900.33925 | L46: ='6. Historical Wholesale'!L46 -> 64602.53744 | M46: 1.8018 | N46: 116400.852 | P46: 167301.1912
B47: May | D47: ='6. Historical Wholesale'!D47 -> 75075.43034 | E47: 3.4121 | F47: 256164.8759 | H47: ='6. Historical Wholesale'!H47 -> 76443.9163 | I47: 0.7879 | J47: 60230.16165 | L47: ='6. Historical Wholesale'!L47 -> 76443.9163 | M47: 1.8018 | N47: 137736.6484 | P47: 197966.81
B48: June | D48: ='6. Historical Wholesale'!D48 -> 83159.6904 | E48: 3.4121 | F48: 283749.1796 | H48: ='6. Historical Wholesale'!H48 -> 83694.28634 | I48: 0.7879 | J48: 65942.72821 | L48: ='6. Historical Wholesale'!L48 -> 83694.28634 | M48: 1.8018 | N48: 150800.3651 | P48: 216743.0933
B49: July | D49: ='6. Historical Wholesale'!D49 -> 81433.65015 | E49: 3.4121 | F49: 277859.7577 | H49: ='6. Historical Wholesale'!H49 -> 82032.74009 | I49: 0.7879 | J49: 64633.59592 | L49: ='6. Historical Wholesale'!L49 -> 82032.74009 | M49: 1.8018 | N49: 147806.5911 | P49: 212440.187
B50: August | D50: ='6. Historical Wholesale'!D50 -> 81347.25077 | E50: 3.4121 | F50: 277564.9544 | H50: ='6. Historical Wholesale'!H50 -> 81691.45374 | I50: 0.7879 | J50: 64364.69641 | L50: ='6. Historical Wholesale'!L50 -> 81691.45374 | M50: 1.8018 | N50: 147191.6614 | P50: 211556.3578
B51: September | D51: ='6. Historical Wholesale'!D51 -> 62734.36223 | E51: 3.4121 | F51: 214055.9174 | H51: ='6. Historical Wholesale'!H51 -> 65040.59912 | I51: 0.7879 | J51: 51245.48805 | L51: ='6. Historical Wholesale'!L51 -> 65040.59912 | M51: 1.8018 | N51: 117190.1515 | P51: 168435.6395
B52: October | D52: ='6. Historical Wholesale'!D52 -> 57289.91022 | E52: 3.4121 | F52: 195478.9027 | H52: ='6. Historical Wholesale'!H52 -> 58289.96035 | I52: 0.7879 | J52: 45926.65976 | L52: ='6. Historical Wholesale'!L52 -> 58289.96035 | M52: 1.8018 | N52: 105026.8506 | P52: 150953.5103
B53: November | D53: ='6. Historical Wholesale'!D53 -> 64284.7678 | E53: 3.4121 | F53: 219346.0562 | H53: ='6. Historical Wholesale'!H53 -> 64766.48018 | I53: 0.7879 | J53: 51029.50973 | L53: ='6. Historical Wholesale'!L53 -> 64766.48018 | M53: 1.8018 | N53: 116696.244 | P53: 167725.7537
B54: December | D54: ='6. Historical Wholesale'!D54 -> 66965.63158 | E54: 3.4121 | F54: 228493.4315 | H54: ='6. Historical Wholesale'!H54 -> 67319.19824 | I54: 0.7879 | J54: 53040.79629 | L54: ='6. Historical Wholesale'!L54 -> 67319.19824 | M54: 1.8018 | N54: 121295.7314 | P54: 174336.5277
B56: Total | D56: =SUM(D43:D54) -> 844453.6471 | E56: =IF(D56<>0,F56/D56,0) -> 3.4121 | F56: =SUM(F43:F54) -> 2881360.289 | H56: =SUM(H43:H54) -> 857650.7753 | I56: =IF(H56<>0,J56/H56,0) -> 0.7879 | J56: =SUM(J43:J54) -> 675743.0459 | L56: =SUM(L43:L54) -> 857650.7753 | M56: =IF(L56<>0,N56/L56,0) -> 1.8018 | N56: =SUM(N43:N54) -> 1545315.167 | P56: =SUM(P43:P54) -> 2221058.213
B58: ='6. Historical Wholesale'!B58 -> Add Extra Host Here (I) | D58: Network | H58: Line Connection | L58: Transformation Connection | P58: Total Line
B60: Month | D60: Units Billed | E60: Rate | F60: Amount | H60: Units Billed | I60: Rate | J60: Amount | L60: Units Billed | M60: Rate | N60: Amount | P60: Amount
B62: January | D62: ='6. Historical Wholesale'!D62 -> 0 | E62: ='5. UTRs and Sub-Transmission'!I50 -> 0 | F62: =D62*E62 -> 0 | H62: ='6. Historical Wholesale'!H62 -> 0 | I62: ='5. UTRs and Sub-Transmission'!I52 -> 0 | J62: =H62*I62 -> 0 | L62: ='6. Historical Wholesale'!L62 -> 0 | M62: ='5. UTRs and Sub-Transmission'!I54 -> 0 | N62: =L62*M62 -> 0 | P62: =J62+N62 -> 0
B63: February | D63: ='6. Historical Wholesale'!D63 -> 0 | E63: =E62 -> 0 | F63: 0 | H63: ='6. Historical Wholesale'!H63 -> 0 | I63: =I62 -> 0 | J63: 0 | L63: ='6. Historical Wholesale'!L63 -> 0 | M63: =M62 -> 0 | N63: 0 | P63: 0
B64: March | D64: ='6. Historical Wholesale'!D64 -> 0 | E64: 0 | F64: 0 | H64: ='6. Historical Wholesale'!H64 -> 0 | I64: 0 | J64: 0 | L64: ='6. Historical Wholesale'!L64 -> 0 | M64: 0 | N64: 0 | P64: 0
B65: April | D65: ='6. Historical Wholesale'!D65 -> 0 | E65: 0 | F65: 0 | H65: ='6. Historical Wholesale'!H65 -> 0 | I65: 0 | J65: 0 | L65: ='6. Historical Wholesale'!L65 -> 0 | M65: 0 | N65: 0 | P65: 0
B66: May | D66: ='6. Historical Wholesale'!D66 -> 0 | E66: 0 | F66: 0 | H66: ='6. Historical Wholesale'!H66 -> 0 | I66: 0 | J66: 0 | L66: ='6. Historical Wholesale'!L66 -> 0 | M66: 0 | N66: 0 | P66: 0
B67: June | D67: ='6. Historical Wholesale'!D67 -> 0 | E67: 0 | F67: 0 | H67: ='6. Historical Wholesale'!H67 -> 0 | I67: 0 | J67: 0 | L67: ='6. Historical Wholesale'!L67 -> 0 | M67: 0 | N67: 0 | P67: 0
B68: July | D68: ='6. Historical Wholesale'!D68 -> 0 | E68: 0 | F68: 0 | H68: ='6. Historical Wholesale'!H68 -> 0 | I68: 0 | J68: 0 | L68: ='6. Historical Wholesale'!L68 -> 0 | M68: 0 | N68: 0 | P68: 0
B69: August | D69: ='6. Historical Wholesale'!D69 -> 0 | E69: 0 | F69: 0 | H69: ='6. Historical Wholesale'!H69 -> 0 | I69: 0 | J69: 0 | L69: ='6. Historical Wholesale'!L69 -> 0 | M69: 0 | N69: 0 | P69: 0
B70: September | D70: ='6. Historical Wholesale'!D70 -> 0 | E70: 0 | F70: 0 | H70: ='6. Historical Wholesale'!H70 -> 0 | I70: 0 | J70: 0 | L70: ='6. Historical Wholesale'!L70 -> 0 | M70: 0 | N70: 0 | P70: 0
B71: October | D71: ='6. Historical Wholesale'!D71 -> 0 | E71: 0 | F71: 0 | H71: ='6. Historical Wholesale'!H71 -> 0 | I71: 0 | J71: 0 | L71: ='6. Historical Wholesale'!L71 -> 0 | M71: 0 | N71: 0 | P71: 0
B72: November | D72: ='6. Historical Wholesale'!D72 -> 0 | E72: 0 | F72: 0 | H72: ='6. Historical Wholesale'!H72 -> 0 | I72: 0 | J72: 0 | L72: ='6. Historical Wholesale'!L72 -> 0 | M72: 0 | N72: 0 | P72: 0
B73: December | D73: ='6. Historical Wholesale'!D73 -> 0 | E73: 0 | F73: 0 | H73: ='6. Historical Wholesale'!H73 -> 0 | I73: 0 | J73: 0 | L73: ='6. Historical Wholesale'!L73 -> 0 | M73: 0 | N73: 0 | P73: 0
B75: Total | D75: =SUM(D62:D73) -> 0 | E75: =IF(D75<>0,F75/D75,0) -> 0 | F75: =SUM(F62:F73) -> 0 | H75: =SUM(H62:H73) -> 0 | I75: =IF(H75<>0,J75/H75,0) -> 0 | J75: =SUM(J62:J73) -> 0 | L75: =SUM(L62:L73) -> 0 | M75: =IF(L75<>0,N75/L75,0) -> 0 | N75: =SUM(N62:N73) -> 0 | P75: =SUM(P62:P73) -> 0
B77: ='6. Historical Wholesale'!B77 -> Add Extra Host Here (II) | D77: Network | H77: Line Connection | L77: Transformation Connection | P77: Total Line
B79: Month | D79: Units Billed | E79: Rate | F79: Amount | H79: Units Billed | I79: Rate | J79: Amount | L79: Units Billed | M79: Rate | N79: Amount | P79: Amount
B81: January | D81: ='6. Historical Wholesale'!D81 -> 0 | E81: ='5. UTRs and Sub-Transmission'!I65 -> 0 | F81: =D81*E81 -> 0 | H81: ='6. Historical Wholesale'!H81 -> 0 | I81: ='5. UTRs and Sub-Transmission'!I67 -> 0 | J81: =H81*I81 -> 0 | L81: ='6. Historical Wholesale'!L81 -> 0 | M81: ='5. UTRs and Sub-Transmission'!I69 -> 0 | N81: =L81*M81 -> 0 | P81: =J81+N81 -> 0
B82: February | D82: ='6. Historical Wholesale'!D82 -> 0 | E82: =E81 -> 0 | F82: 0 | H82: ='6. Historical Wholesale'!H82 -> 0 | I82: =I81 -> 0 | J82: 0 | L82: ='6. Historical Wholesale'!L82 -> 0 | M82: =M81 -> 0 | N82: 0 | P82: 0
B83: March | D83: ='6. Historical Wholesale'!D83 -> 0 | E83: 0 | F83: 0 | H83: ='6. Historical Wholesale'!H83 -> 0 | I83: 0 | J83: 0 | L83: ='6. Historical Wholesale'!L83 -> 0 | M83: 0 | N83: 0 | P83: 0
B84: April | D84: ='6. Historical Wholesale'!D84 -> 0 | E84: 0 | F84: 0 | H84: ='6. Historical Wholesale'!H84 -> 0 | I84: 0 | J84: 0 | L84: ='6. Historical Wholesale'!L84 -> 0 | M84: 0 | N84: 0 | P84: 0
B85: May | D85: ='6. Historical Wholesale'!D85 -> 0 | E85: 0 | F85: 0 | H85: ='6. Historical Wholesale'!H85 -> 0 | I85: 0 | J85: 0 | L85: ='6. Historical Wholesale'!L85 -> 0 | M85: 0 | N85: 0 | P85: 0
B86: June | D86: ='6. Historical Wholesale'!D86 -> 0 | E86: 0 | F86: 0 | H86: ='6. Historical Wholesale'!H86 -> 0 | I86: 0 | J86: 0 | L86: ='6. Historical Wholesale'!L86 -> 0 | M86: 0 | N86: 0 | P86: 0
B87: July | D87: ='6. Historical Wholesale'!D87 -> 0 | E87: 0 | F87: 0 | H87: ='6. Historical Wholesale'!H87 -> 0 | I87: 0 | J87: 0 | L87: ='6. Historical Wholesale'!L87 -> 0 | M87: 0 | N87: 0 | P87: 0
B88: August | D88: ='6. Historical Wholesale'!D88 -> 0 | E88: 0 | F88: 0 | H88: ='6. Historical Wholesale'!H88 -> 0 | I88: 0 | J88: 0 | L88: ='6. Historical Wholesale'!L88 -> 0 | M88: 0 | N88: 0 | P88: 0
B89: September | D89: ='6. Historical Wholesale'!D89 -> 0 | E89: 0 | F89: 0 | H89: ='6. Historical Wholesale'!H89 -> 0 | I89: 0 | J89: 0 | L89: ='6. Historical Wholesale'!L89 -> 0 | M89: 0 | N89: 0 | P89: 0
B90: October | D90: ='6. Historical Wholesale'!D90 -> 0 | E90: 0 | F90: 0 | H90: ='6. Historical Wholesale'!H90 -> 0 | I90: 0 | J90: 0 | L90: ='6. Historical Wholesale'!L90 -> 0 | M90: 0 | N90: 0 | P90: 0
B91: November | D91: ='6. Historical Wholesale'!D91 -> 0 | E91: 0 | F91: 0 | H91: ='6. Historical Wholesale'!H91 -> 0 | I91: 0 | J91: 0 | L91: ='6. Historical Wholesale'!L91 -> 0 | M91: 0 | N91: 0 | P91: 0
B92: December | D92: ='6. Historical Wholesale'!D92 -> 0 | E92: 0 | F92: 0 | H92: ='6. Historical Wholesale'!H92 -> 0 | I92: 0 | J92: 0 | L92: ='6. Historical Wholesale'!L92 -> 0 | M92: 0 | N92: 0 | P92: 0
B94: Total | D94: =SUM(D81:D92) -> 0 | E94: =IF(D94<>0,F94/D94,0) -> 0 | F94: =SUM(F81:F92) -> 0 | H94: =SUM(H81:H92) -> 0 | I94: =IF(H94<>0,J94/H94,0) -> 0 | J94: =SUM(J81:J92) -> 0 | L94: =SUM(L81:L92) -> 0 | M94: =IF(L94<>0,N94/L94,0) -> 0 | N94: =SUM(N81:N92) -> 0 | P94: =SUM(P81:P92) -> 0
B96: Total | D96: Network | H96: Line Connection | L96: Transformation Connection | P96: Total Line
B98: Month | D98: Units Billed | E98: Rate | F98: Amount | H98: Units Billed | I98: Rate | J98: Amount | L98: Units Billed | M98: Rate | N98: Amount | P98: Amount
B100: January | D100: =D24+D43+D62+D81 -> 903470.5201 | E100: =IF(D100<>0,F100/D100,0) -> 3.745451894 | F100: =F24+F43+F62+F81 -> 3383905.371 | H100: =H24+H43+H62+H81 -> 875748.5198 | I100: =IF(H100<>0,J100/H100,0) -> 0.8529441483 | J100: =J24+J43+J62+J81 -> 746964.5754 | L100: =L24+L43+L62+L81 -> 936533.5198 | M100: =IF(L100<>0,N100/L100,0) -> 1.981862647 | N100: =N24+N43+N62+N81 -> 1856080.8 | P100: =J100+N100 -> 2603045.376
B101: February | D101: =D25+D44+D63+D82 -> 831815.8266 | E101: 3.751350155 | F101: 3120432.43 | H101: =H25+H44+H63+H82 -> 807319.3216 | I101: 0.8541019877 | J101: =J25+J44+J63+J82 -> 689533.0373 | L101: =L25+L44+L63+L82 -> 866713.3216 | M101: 1.984897671 | N101: =N25+N44+N63+N82 -> 1720337.253 | P101: 2409870.291
B102: March | D102: 831623.8173 | E102: 3.753530266 | F102: 3121525.168 | H102: =H26+H45+H64+H83 -> 800189.7621 | I102: 0.8544112539 | J102: =J26+J45+J64+J83 -> 683691.138 | L102: =L26+L45+L64+L83 -> 864744.7621 | M102: 1.985783659 | N102: =N26+N45+N64+N83 -> 1717196.018 | P102: 2400887.156
B103: April | D103: 724372.7895 | E103: 3.748149964 | F103: 2715057.845 | H103: =H27+H46+H65+H84 -> 718045.5374 | I103: 0.853513165 | J103: =J27+J46+J65+J84 -> 612861.3193 | L103: =L27+L46+L65+L84 -> 781570.5374 | M103: 1.983617316 | N103: =N27+N46+N65+N84 -> 1550336.852 | P103: 2163198.171
B104: May | D104: 806265.4303 | E104: 3.74574298 | F104: 3020063.076 | H104: =H28+H47+H66+H85 -> 790491.9163 | I104: 0.8530276246 | J104: =J28+J47+J66+J85 -> 674311.4417 | L104: =L28+L47+L66+L85 -> 854122.9163 | M104: 1.98226112 | N104: =N28+N47+N66+N85 -> 1693094.648 | P104: 2367406.09
B105: June | D105: 981219.6904 | E105: 3.748819979 | F105: 3678415.98 | H105: =H29+H48+H67+H86 -> 960321.2863 | I105: 0.8537163134 | J105: =J29+J48+J67+J86 -> 819841.9482 | L105: =L29+L48+L67+L86 -> 1023727.286 | M105: 1.983796263 | N105: =N29+N48+N67+N86 -> 2030866.365 | P105: 2850708.313
B106: July | D106: 972713.6502 | E106: 3.749200144 | F106: 3646898.158 | H106: =H30+H49+H68+H87 -> 941936.7401 | I106: 0.8537208516 | J106: =J30+J49+J68+J87 -> 804151.0359 | L106: =L30+L49+L68+L87 -> 1008199.74 | M106: 1.983873345 | N106: =N30+N49+N68+N87 -> 2000140.591 | P106: 2804291.627
B107: August | D107: 979875.2508 | E107: 3.74945769 | F107: 3674000.794 | H107: =H31+H50+H69+H88 -> 951074.4537 | I107: 0.8538070529 | J107: =J31+J50+J69+J88 -> 812034.0764 | L107: =L31+L50+L69+L88 -> 1017690.454 | M107: 1.984090205 | N107: =N31+N50+N69+N88 -> 2019189.661 | P107: 2831223.738
B108: September | D108: 969307.3622 | E108: 3.756189212 | F108: 3640901.857 | H108: =H32+H51+H70+H89 -> 932500.5991 | I108: 0.8549711269 | J108: =J32+J51+J70+J89 -> 797261.088 | L108: =L32+L51+L70+L89 -> 999225.5991 | M108: 1.987098963 | N108: =N32+N51+N70+N89 -> 1985560.151 | P108: 2782821.24
B109: October | D109: 694307.9102 | E109: 3.749643212 | F109: 2603406.943 | H109: =H33+H52+H71+H90 -> 707680.9604 | I109: 0.8540612983 | J109: =J33+J52+J71+J90 -> 604402.9198 | L109: =L33+L52+L71+L90 -> 760025.9604 | M109: 1.984799111 | N109: =N33+N52+N71+N90 -> 1508498.851 | P109: 2112901.77
B110: November | D110: 808694.7678 | E110: 3.750754892 | F110: 3033215.856 | H110: =H34+H53+H72+H91 -> 776929.4802 | I110: 0.8539895919 | J110: =J34+J53+J72+J91 -> 663489.6897 | L110: =L34+L53+L72+L91 -> 834012.4802 | M110: 1.984608484 | N110: =N34+N53+N72+N91 -> 1655188.244 | P110: 2318677.934
B111: December | D111: 811846.6316 | E111: 3.749653559 | F111: 3044143.612 | H111: =H35+H54+H73+H92 -> 791332.1982 | I111: 0.8538664012 | J111: =J35+J54+J73+J92 -> 675691.9763 | L111: =L35+L54+L73+L92 -> 851314.1982 | M111: 1.984326979 | N111: =N35+N54+N73+N92 -> 1689285.731 | P111: 2364977.708
B113: Total | D113: =SUM(D100:D111) -> 10315513.65 | E113: =IF(D113<>0,F113/D113,0) -> 3.749882789 | F113: =SUM(F100:F111) -> 38681967.09 | H113: =SUM(H100:H111) -> 10053570.78 | I113: =IF(H113<>0,J113/H113,0) -> 0.8538492878 | J113: =SUM(J100:J111) -> 8584234.246 | L113: =SUM(L100:L111) -> 10797880.78 | M113: =IF(L113<>0,N113/L113,0) -> 1.984257431 | N113: =SUM(N100:N111) -> 21425775.17 | P113: =SUM(P100:P111) -> 30010009.41
N115: Low Voltage Switchgear Credit (if applicable) | P115: ='5. UTRs and Sub-Transmission'!I95 -> 0
N117: Total including deduction for Low Voltage Switchgear Credit | P117: =P113+P115 -> 30010009.41

Sheet 9. RTSR Rates to Forecast
A13: The purpose of this sheet is to re-align the current RTS Network Rates to recover current wholesale network costs.
A15: Rate Class | B15: Rate Description | C15: Unit | D15: Current RTSR-Network | E15: Loss Adjusted Billed kWh | F15: Billed kW | G15: Billed Amount | H15: Billed Amount % | I15: Current Wholesale Billing | J15: Adjusted RTSR Network
A17: Residential | B17: RTSR - Network | C17: kWh | D17: 0.007991143645 | E17: 1671266565 | G17: =ROUND(D17*E17, 2) -> 13355331.19 | H17: =G17/39770030.3 -> 0.3358139556 | I17: =H17*total_current_wholesale_network -> 12989944.38 | J17: =IF(ISERROR(I17/E17), 0, I17/E17) -> 0.007772514958
A18: General Service Less Than 50 kW | B18: RTSR - Network | C18: kWh | D18: 0.006992250689 | E18: 624496698.8 | G18: =ROUND(D18*E18, 2) -> 4366637.47 | H18: 0.1097971874 | I18: 4247171.19 | J18: =IF(ISERROR(I18/E18), 0, I18/E18) -> 0.006800950586
A19: General Service 50 to 4,999 kW | B19: RTSR - Network | C19: kW | D19: 2.78258281 | F19: 4971638.836 | G19: =ROUND(D19*F19, 2) -> 13833996.76 | H19: 0.3478497918 | I19: 13455514.2 | J19: =IF(ISERROR(I19/F19), 0, I19/F19) -> 2.70645448
A20: Large Use - Regular | B20: RTSR - Network | C20: kW | D20: 3.178699361 | F20: 516539.5221 | G20: =ROUND(D20*F20, 2) -> 1641923.85 | H20: 0.04128545635 | I20: 1597002.664 | J20: =IF(ISERROR(I20/F20), 0, I20/F20) -> 3.091733731
A21: Large Use | B21: RTSR - Network | C21: kW | D21: 3.178699361 | F21: 1963579.23 | G21: =ROUND(D21*F21, 2) -> 6241628.04 | H21: 0.1569430044 | I21: 6070864.131 | J21: =IF(ISERROR(I21/F21), 0, I21/F21) -> 3.091733727
A22: Unmetered Scattered Load | B22: RTSR - Network | C22: kWh | D22: 0.007103238795 | E22: 12111078.05 | G22: =ROUND(D22*E22, 2) -> 86027.88 | H22: 0.002163133378 | I22: 83674.25415 | J22: =IF(ISERROR(I22/E22), 0, I22/E22) -> 0.006908902228
A23: Standby Power | B23: RTSR - Network | C23: kW | G23: =ROUND(D23*F23, 2) -> 0 | H23: 0 | I23: 0 | J23: =IF(ISERROR(I23/F23), 0, I23/F23) -> 0
A24: Sentinel Lighting | B24: RTSR - Network | C24: kW | D24: 2.312215216 | F24: 1253.43814 | G24: =ROUND(D24*F24, 2) -> 2898.22 | H24: 7.287447302e-05 | I24: 2818.927967 | J24: =IF(ISERROR(I24/F24), 0, I24/F24) -> 2.248956591
A25: Street Lighting | B25: RTSR - Network | C25: kW | D25: 2.190572252 | F25: 110284.83 | G25: =ROUND(D25*F25, 2) -> 241586.89 | H25: 0.006074596579 | I25: 234977.3449 | J25: =IF(ISERROR(I25/F25), 0, I25/F25) -> 2.130640678
A27: The purpose of this table is to re-align the current RTS Connection Rates to recover current wholesale connection costs.
A28: Rate Class | B28: Rate Description | C28: Unit | D28: Current RTSR-Connection | E28: Loss Adjusted Billed kWh | F28: Billed kW | G28: Billed Amount | H28: Billed Amount % | I28: Current Wholesale Billing | J28: Adjusted RTSR-Connection
A30: Residential | B30: RTSR - Connection | C30: kWh | D30: 0.00587670412 | E30: 1671266565 | G30: =ROUND(D30*E30, 2) -> 9821539.11 | H30: =G30/29949614.3 -> 0.3279354122 | I30: =H30*Total_Current_Wholesale_Lineplus -> 9841344.806 | J30: =IF(ISERROR(I30/E30), 0, I30/E30) -> 0.00588855483
A31: General Service Less Than 50 kW | B31: RTSR - Connection | C31: kWh | D31: 0.005311636416 | E31: 624496698.8 | G31: =ROUND(D31*E31, 2) -> 3317099.41 | H31: 0.1107559976 | I31: 3323788.531 | J31: =IF(ISERROR(I31/E31), 0, I31/E31) -> 0.00532234764
A32: General Service 50 to 4,999 kW | B32: RTSR - Connection | C32: kW | D32: 2.117195673 | F32: 4971638.836 | G32: =ROUND(D32*F32, 2) -> 10525932.23 | H32: 0.351454684 | I32: 10547158.38 | J32: =IF(ISERROR(I32/F32), 0, I32/F32) -> 2.121465119
A33: Large Use - Regular | B33: RTSR - Connection | C33: kW | D33: 2.432955506 | F33: 516539.5221 | G33: =ROUND(D33*F33, 2) -> 1256717.67 | H33: 0.04196106359 | I33: 1259251.913 | J33: =IF(ISERROR(I33/F33), 0, I33/F33) -> 2.437861692
A34: Large Use | B34: RTSR - Connection | C34: kW | D34: 2.432955506 | F34: 1963579.23 | G34: =ROUND(D34*F34, 2) -> 4777300.9 | H34: 0.1595112662 | I34: 4786934.601 | J34: =IF(ISERROR(I34/F34), 0, I34/F34) -> 2.437861701
A35: Unmetered Scattered Load | B35: RTSR - Connection | C35: kWh | D35: 0.005424649957 | E35: 12111078.05 | G35: =ROUND(D35*E35, 2) -> 65698.36 | H35: 0.002193629585 | I35: 65830.84451 | J35: =IF(ISERROR(I35/E35), 0, I35/E35) -> 0.005435589154
A36: Standby Power | B36: RTSR - Connection | C36: kW | G36: =ROUND(D36*F36, 2) -> 0 | H36: 0 | I36: 0 | J36: =IF(ISERROR(I36/F36), 0, I36/F36) -> 0
A37: Sentinel Lighting | B37: RTSR - Connection | C37: kW | D37: 1.703679127 | F37: 1253.43814 | G37: =ROUND(D37*F37, 2) -> 2135.46 | H37: 7.130175296e-05 | I37: 2139.766277 | J37: =IF(ISERROR(I37/F37), 0, I37/F37) -> 1.707117574
A38: Street Lighting | B38: RTSR - Connection | C38: kW | D38: 1.661073022 | F38: 110284.83 | G38: =ROUND(D38*F38, 2) -> 183191.16 | H38: 0.006116645048 | I38: 183560.5755 | J38: =IF(ISERROR(I38/F38), 0, I38/F38) -> 1.664422709
A40: The purpose of this table is to update the re-aligned RTS Network Rates to recover future wholesale network costs.
A41: Rate Class | B41: Rate Description | C41: Unit | D41: Adjusted RTSR-Network | E41: Loss Adjusted Billed kWh | F41: Billed kW | G41: Billed Amount | H41: Billed Amount % | I41: Current Wholesale Billing | J41: Proposed RTSR-Network
A43: Residential | B43: RTSR - Network | C43: kWh | D43: 0.007772514958 | E43: 1671266565 | G43: =IF(ISERROR(D43*E43), 0, ROUND(D43*E43, 2)) -> 12989944.38 | H43: =G43/38681967.08 -> 0.3358139557 | I43: =H43*forecast_wholesale_network -> 12989944.38 | J43: =IF(ISERROR(I43/E43), 0, I43/E43) -> 0.00777251496
A44: General Service Less Than 50 kW | B44: RTSR - Network | C44: kWh | D44: 0.006800950586 | E44: 624496698.8 | G44: =IF(ISERROR(D44*E44), 0, ROUND(D44*E44, 2)) -> 4247171.19 | H44: 0.1097971874 | I44: 4247171.191 | J44: =IF(ISERROR(I44/E44), 0, I44/E44) -> 0.006800950588
A45: General Service 50 to 4,999 kW | B45: RTSR - Network | C45: kW | D45: 2.70645448 | F45: 4971638.836 | G45: =ROUND(D45*F45, 2) -> 13455514.2 | H45: 0.3478497919 | I45: 13455514.2 | J45: =IF(ISERROR(I45/F45), 0, I45/F45) -> 2.706454481
A46: Large Use - Regular | B46: RTSR - Network | C46: kW | D46: 3.091733731 | F46: 516539.5221 | G46: =ROUND(D46*F46, 2) -> 1597002.66 | H46: 0.04128545626 | I46: 1597002.66 | J46: =IF(ISERROR(I46/F46), 0, I46/F46) -> 3.091733724
A47: Large Use | B47: RTSR - Network | C47: kW | D47: 3.091733727 | F47: 1963579.23 | G47: =ROUND(D47*F47, 2) -> 6070864.13 | H47: 0.1569430044 | I47: 6070864.131 | J47: =IF(ISERROR(I47/F47), 0, I47/F47) -> 3.091733728
A48: Unmetered Scattered Load | B48: RTSR - Network | C48: kWh | D48: 0.006908902228 | E48: 12111078.05 | G48: =IF(ISERROR(D48*E48), 0, ROUND(D48*E48, 2)) -> 83674.25 | H48: 0.002163133272 | I48: 83674.25002 | J48: =IF(ISERROR(I48/E48), 0, I48/E48) -> 0.006908901887
A49: Standby Power | B49: RTSR - Network | C49: kW | D49: 0 | G49: =ROUND(D49*F49, 2) -> 0 | H49: 0 | I49: 0 | J49: =IF(ISERROR(I49/F49), 0, I49/F49) -> 0
A50: Sentinel Lighting | B50: RTSR - Network | C50: kW | D50: 2.248956591 | F50: 1253.43814 | G50: =ROUND(D50*F50, 2) -> 2818.93 | H50: 7.287452559e-05 | I50: 2818.930001 | J50: =IF(ISERROR(I50/F50), 0, I50/F50) -> 2.248958213
A51: Street Lighting | B51: RTSR - Network | C51: kW | D51: 2.130640678 | F51: 110284.83 | G51: =ROUND(D51*F51, 2) -> 234977.34 | H51: 0.006074596453 | I51: 234977.3401 | J51: =IF(ISERROR(I51/F51), 0, I51/F51) -> 2.130640633
A53: The purpose of this table is to update the re-aligned RTS Connection Rates to recover future wholesale connection costs.
A54: Rate Class | B54: Rate Description | C54: Unit | D54: Adjusted RTSR-Connection | E54: Loss Adjusted Billed kWh | F54: Billed kW | G54: Billed Amount | H54: Billed Amount % | I54: Current Wholesale Billing | J54: Proposed RTSR-Connection
A56: Residential | B56: RTSR - Connection | C56: kWh | D56: 0.00588855483 | E56: 1671266565 | G56: =ROUND(D56*E56, 2) -> 9841344.81 | H56: =G56/30010009.42 -> 0.3279354122 | I56: =H56*forecast_wholesale_lineplus -> 9841344.808 | J56: =IF(ISERROR(I56/E56), 0, I56/E56) -> 0.005888554831
A57: General Service Less Than 50 kW | B57: RTSR - Connection | C57: kWh | D57: 0.00532234764 | E57: 624496698.8 | G57: =ROUND(D57*E57, 2) -> 3323788.53 | H57: 0.1107559976 | I57: 3323788.529 | J57: =IF(ISERROR(I57/E57), 0, I57/E57) -> 0.005322347637
A58: General Service 50 to 4,999 kW | B58: RTSR - Connection | C58: kW | D58: 2.121465119 | F58: 4971638.836 | G58: =ROUND(D58*F58, 2) -> 10547158.38 | H58: 0.3514546841 | I58: 10547158.38 | J58: =IF(ISERROR(I58/F58), 0, I58/F58) -> 2.12146512
A59: Large Use - Regular | B59: RTSR - Connection | C59: kW | D59: 2.437861692 | F59: 516539.5221 | G59: =ROUND(D59*F59, 2) -> 1259251.91 | H59: 0.04196106347 | I59: 1259251.91 | J59: =IF(ISERROR(I59/F59), 0, I59/F59) -> 2.437861685
A60: Large Use | B60: RTSR - Connection | C60: kW | D60: 2.437861701 | F60: 1963579.23 | G60: =ROUND(D60*F60, 2) -> 4786934.6 | H60: 0.1595112662 | I60: 4786934.599 | J60: =IF(ISERROR(I60/F60), 0, I60/F60) -> 2.4378617
A61: Unmetered Scattered Load | B61: RTSR - Connection | C61: kWh | D61: 0.005435589154 | E61: 12111078.05 | G61: =ROUND(D61*E61, 2) -> 65830.84 | H61: 0.002193629435 | I61: 65830.83998 | J61: =IF(ISERROR(I61/E61), 0, I61/E61) -> 0.00543558878
A62: Standby Power | B62: RTSR - Connection | C62: kW | D62: 0 | G62: =ROUND(D62*F62, 2) -> 0 | H62: 0 | I62: 0 | J62: =IF(ISERROR(I62/F62), 0, I62/F62) -> 0
A63: Sentinel Lighting | B63: RTSR - Connection | C63: kW | D63: 1.707117574 | F63: 1253.43814 | G63: =ROUND(D63*F63, 2) -> 2139.77 | H63: 7.130187699e-05 | I63: 2139.769999 | J63: =IF(ISERROR(I63/F63), 0, I63/F63) -> 1.707120543
A64: Street Lighting | B64: RTSR - Connection | C64: kW | D64: 1.664422709 | F64: 110284.83 | G64: =ROUND(D64*F64, 2) -> 183560.58 | H64: 0.006116645198 | I64: 183560.58 | J64: =IF(ISERROR(I64/F64), 0, I64/F64) -> 1.664422749

Sheet hidden1 (hidden)
A1: =IF('3. Rate Classes'!L17=1, '3. Rate Classes'!C17, "") -> Residential | B1: 1
A2: =IF('3. Rate Classes'!L18=1, '3. Rate Classes'!C18, "") -> General Service Less Than 50 kW | B2: 2
A3: =IF('3. Rate Classes'!L19=1, '3. Rate Classes'!C19, "") -> General Service 50 to 4,999 kW | B3: 3
A4: =IF('3. Rate Classes'!L20=1, '3. Rate Classes'!C20, "") -> Large Use - Regular | B4: 4
A5: =IF('3. Rate Classes'!L21=1, '3. Rate Classes'!C21, "") -> Large Use | B5: 5
A6: =IF('3. Rate Classes'!L22=1, '3. Rate Classes'!C22, "") -> Unmetered Scattered Load | B6: 6
A7: =IF('3. Rate Classes'!L23=1, '3. Rate Classes'!C23, "") -> Standby Power | B7: 7
A8: =IF('3. Rate Classes'!L24=1, '3. Rate Classes'!C24, "") -> Sentinel Lighting | B8: 8
A9: =IF('3. Rate Classes'!L25=1, '3. Rate Classes'!C25, "") -> Street Lighting | B9: 9
A10: =IF('3. Rate Classes'!L26=1, '3. Rate Classes'!C26, "") ->  | B10: 10
A11: =IF('3. Rate Classes'!L27=1, '3. Rate Classes'!C27, "") ->  | B11: 11
A12: =IF('3. Rate Classes'!L28=1, '3. Rate Classes'!C28, "") ->  | B12: 12
A13: =IF('3. Rate Classes'!L29=1, '3. Rate Classes'!C29, "") ->  | B13: 13
A14: =IF('3. Rate Classes'!L30=1, '3. Rate Classes'!C30, "") ->  | B14: 14
A15: =IF('3. Rate Classes'!L31=1, '3. Rate Classes'!C31, "") ->  | B15: 15
A16: =IF('3. Rate Classes'!L32=1, '3. Rate Classes'!C32, "") ->  | B16: 16
A17: =IF('3. Rate Classes'!L33=1, '3. Rate Classes'!C33, "") ->  | B17: 17
A18: =IF('3. Rate Classes'!L34=1, '3. Rate Classes'!C34, "") ->  | B18: 18
A19: =IF('3. Rate Classes'!L35=1, '3. Rate Classes'!C35, "") ->  | B19: 19
A20: =IF('3. Rate Classes'!L36=1, '3. Rate Classes'!C36, "") ->  | B20: 20
A21: =IF('3. Rate Classes'!L37=1, '3. Rate Classes'!C37, "") ->  | B21: 21
A22: =IF('3. Rate Classes'!L38=1, '3. Rate Classes'!C38, "") ->  | B22: 22
